NUMERO_MANDATO;RIGA_MANDATO;QUIET;IMPORTO_RIGA;IMPORTO_MANDATO;BENEFICIARIO;CIG;TITOLO_PAGAMENTO;DATA_MANDATO;CAPITOLO;ARTICOLO;NUMERO_IMPEGNO;TITOLO;DESCR_TITOLO;LIVELLO_II;DESCR_LIVELLO_II;LIVELLO_III;DESCR_LIVELLO_III;LIVELLO_IV;DESCR_LIVELLO_IV;LIVELLO_V;DESCR_LIVELLO_V;DATA_PAG_EFF;
9;1;2;"419,23";"419,23";TESORIERE COMUNALE-CREDITO SICILIANO; ;SERVIZIO TESORERIA COMUNALE - RIMBORSO SPESE ANNO 2017;11-01-2018;1054;0;435;1;Spese correnti;3;Acquisto di beni e servizi;2;Acquisto di servizi;15;Contratti di servizio pubblico;999;Altre spese per contratti di servizio pubblico;11-01-2018;
10;1;41;"1.682,51";"1.682,51";ZS INFORMATICA S.R.L.;Z5A2102277;ACCONTO Fatt.n. 239  del 22/12/2017 pc e stampante laser;11-01-2018;2041;0;446;1;Spese correnti;3;Acquisto di beni e servizi;2;Acquisto di servizi;15;Contratti di servizio pubblico;999;Altre spese per contratti di servizio pubblico;19-01-2018;
11;1;42;"168,23";"168,23";ZS INFORMATICA S.R.L.;Z5A2102277;SALDO Fatt.n. 239  del 22/12/2017 pc e stampante laser;11-01-2018;2041;1;447;1;Spese correnti;3;Acquisto di beni e servizi;2;Acquisto di servizi;15;Contratti di servizio pubblico;999;Altre spese per contratti di servizio pubblico;19-01-2018;
12;1;77;"204,00";"204,00";AZIENDA SANITARIA PROVINCIALE N.5; ;VIDIMAZIONE TABELLE DIETETICHE REFEZIONE SCOLASTICA A.S.2017/2018;11-01-2018;2000;26;312;1;Spese correnti;3;Acquisto di beni e servizi;2;Acquisto di servizi;15;Contratti di servizio pubblico;6;Contratti di servizio per le mense scolastiche;23-01-2018;
13;1;43;"500,00";"500,00";COOP. SOCIALE ORCHIDEA;Z432014AD5;Fatt.n. 26 E del 28/12/2017 PASTI MENSA SCOLASTICA DIC.2017;11-01-2018;1878;19;399;1;Spese correnti;3;Acquisto di beni e servizi;1;Acquisto di beni;2;Altri beni di consumo;11;Generi alimentari;19-01-2018;
14;1;44;"2.926,10";"2.926,10";COOP. SOCIALE ORCHIDEA;Z432014AD5;Fatt.n. 26 E del 28/12/2017 PASTI MENSA SCOLASTICA DIC.2017;11-01-2018;2000;8;398;1;Spese correnti;3;Acquisto di beni e servizi;2;Acquisto di servizi;15;Contratti di servizio pubblico;6;Contratti di servizio per le mense scolastiche;19-01-2018;
15;1;45;"2.491,23";"2.491,23";COOP. SOCIALE ORCHIDEA;Z432014AD5;Fatt.n. 26 E del 28/12/2017 PASTI MENSA SCOLASTICA DIC.2017;11-01-2018;2000;8;398;1;Spese correnti;3;Acquisto di beni e servizi;2;Acquisto di servizi;15;Contratti di servizio pubblico;6;Contratti di servizio per le mense scolastiche;19-01-2018;
16;1;46;"200,00";"200,00";ASSOCIAZIONE LA VOCE DELLE DONNE; ;CONTRIBUTI MANIFESTAZIONI PROGRAMMA ESTATE 2017;11-01-2018;2000;7;554;1;Spese correnti;4;Trasferimenti correnti;4;Trasferimenti correnti a Istituzioni Sociali Private;1;Trasferimenti correnti a Istituzioni Sociali Private;1;Trasferimenti correnti a Istituzioni Sociali Private;19-01-2018;
17;1;19;"290,10";"290,10";GAS NATURALVENDITA ITALIA SPA; ;SALDO Fatt.n. FI17366000009977  del 20/12/2017 GAS METANO 05/10-24/11/2017;11-01-2018;6160;3;433;1;Spese correnti;3;Acquisto di beni e servizi;2;Acquisto di servizi;5;Utenze e canoni;6;Gas;18-01-2018;
18;1;16;"4,91";"3.070,47";TELECOM ITALIA S.P.A.-TIM SPA; ;Fatt.n. 8A01050694 del 06/12/2017 1BIM 2018;11-01-2018;6040;5;390;1;Spese correnti;3;Acquisto di beni e servizi;2;Acquisto di servizi;5;Utenze e canoni;1;Telefonia fissa;18-01-2018;
18;2;16;"75,61";"3.070,47";TELECOM ITALIA S.P.A.-TIM SPA; ;Fatt.n. 8V00641256 del 06/12/2017 1BIM 2018;11-01-2018;6040;5;390;1;Spese correnti;3;Acquisto di beni e servizi;2;Acquisto di servizi;5;Utenze e canoni;1;Telefonia fissa;18-01-2018;
18;3;16;"389,76";"3.070,47";TELECOM ITALIA S.P.A.-TIM SPA; ;Fatt.n. 8V00639852 del 06/12/2017 1BIM 2018;11-01-2018;6040;5;390;1;Spese correnti;3;Acquisto di beni e servizi;2;Acquisto di servizi;5;Utenze e canoni;1;Telefonia fissa;18-01-2018;
18;4;16;"793,75";"3.070,47";TELECOM ITALIA S.P.A.-TIM SPA; ;Fatt.n. 8V00639466 del 06/12/2017 1BIM 2018;11-01-2018;6040;5;390;1;Spese correnti;3;Acquisto di beni e servizi;2;Acquisto di servizi;5;Utenze e canoni;1;Telefonia fissa;18-01-2018;
18;5;16;"835,17";"3.070,47";TELECOM ITALIA S.P.A.-TIM SPA; ;Fatt.n. 8V00642182 del 06/12/2017 1BIM 2018;11-01-2018;6040;5;390;1;Spese correnti;3;Acquisto di beni e servizi;2;Acquisto di servizi;5;Utenze e canoni;1;Telefonia fissa;18-01-2018;
18;6;16;"971,27";"3.070,47";TELECOM ITALIA S.P.A.-TIM SPA; ;Fatt.n. 4220918800016099 del 06/12/2017 1BIM 2018;11-01-2018;6040;5;390;1;Spese correnti;3;Acquisto di beni e servizi;2;Acquisto di servizi;5;Utenze e canoni;1;Telefonia fissa;18-01-2018;
19;1;17;"76,47";"205,79";TELECOM ITALIA S.P.A.-TIM SPA; ;Fatt.n. 8V00641189 del 06/12/2017 1BIM 2018;11-01-2018;6040;6;391;1;Spese correnti;3;Acquisto di beni e servizi;2;Acquisto di servizi;5;Utenze e canoni;1;Telefonia fissa;18-01-2018;
19;2;17;"129,32";"205,79";TELECOM ITALIA S.P.A.-TIM SPA; ;Fatt.n. 4220918800016089 del 06/12/2017 1BIM 2018;11-01-2018;6040;6;391;1;Spese correnti;3;Acquisto di beni e servizi;2;Acquisto di servizi;5;Utenze e canoni;1;Telefonia fissa;18-01-2018;
20;1;18;"76,47";"194,99";TELECOM ITALIA S.P.A.-TIM SPA; ;Fatt.n. 8V00640914 del 06/12/2017 1BIM 2018;11-01-2018;6040;10;393;1;Spese correnti;3;Acquisto di beni e servizi;2;Acquisto di servizi;5;Utenze e canoni;1;Telefonia fissa;18-01-2018;
20;2;18;"118,52";"194,99";TELECOM ITALIA S.P.A.-TIM SPA; ;Fatt.n. 4220918800016099 del 06/12/2017 1BIM 2018;11-01-2018;6040;10;393;1;Spese correnti;3;Acquisto di beni e servizi;2;Acquisto di servizi;5;Utenze e canoni;1;Telefonia fissa;18-01-2018;
21;1;47;"743,03";"2.000,00";T.A.I. SRL;Z441FE4B65;ACCONTO Fatt.n. FATTPA 18_17  del 09/12/2017 TRASPORTO STUDENTI NOV.2017;11-01-2018;2000;9;281;1;Spese correnti;3;Acquisto di beni e servizi;2;Acquisto di servizi;15;Contratti di servizio pubblico;2;Contratti di servizio di trasporto scolastico;19-01-2018;
21;2;47;"1.256,97";"2.000,00";T.A.I. SRL;Z441FE4B65;SALDO Fatt.n. FATTPA 17_17  del 30/11/2017 TRASPORTO STUDENTI SETT./OTT.2017;11-01-2018;2000;9;281;1;Spese correnti;3;Acquisto di beni e servizi;2;Acquisto di servizi;15;Contratti di servizio pubblico;2;Contratti di servizio di trasporto scolastico;19-01-2018;
22;1;48;"14,16";"14,16";T.A.I. SRL;Z441FE4B65;SALDO Fatt.n. FATTPA 18_17  del 09/12/2017 TRASPORTO STUDENTI NOV.2017;11-01-2018;2000;9;281;1;Spese correnti;3;Acquisto di beni e servizi;2;Acquisto di servizi;15;Contratti di servizio pubblico;2;Contratti di servizio di trasporto scolastico;19-01-2018;
23;1;49;"4.070,00";"4.070,00";PIZZO PIPPO;Z6C1B6555D;"SALDO Fatt.n. 62|2017  del 31/08/2017 sgombero, carico e trasporto rifiuti ingombranti";11-01-2018;10600;7;537;1;Spese correnti;10;Altre spese correnti;99;Altre spese correnti n.a.c.;99;Altre spese correnti n.a.c.;999;Altre spese correnti n.a.c.;19-01-2018;
24;1;50;"7.480,00";"7.480,00";PIZZO PIPPO;ZB21AA8EA9;SALDO Fatt.n. 63|2017  del 31/08/2017 fornitura contenitori per raccolta rifiuti;11-01-2018;10600;7;538;1;Spese correnti;10;Altre spese correnti;99;Altre spese correnti n.a.c.;99;Altre spese correnti n.a.c.;999;Altre spese correnti n.a.c.;19-01-2018;
25;1;51;"501,18";"501,18";SCAFIDI GIUSEPPE;ZCB17E106E;SALDO Fatt.n. 000052-2017-FE  del 13/12/2017 RIFERIMENTO PREVENTIVO N.84/2017 DEL 24/10/2017 SU MITSUBISHI PIK UP TG CN 190 JJ;11-01-2018;6070;5;512;1;Spese correnti;3;Acquisto di beni e servizi;2;Acquisto di servizi;9;Manutenzione ordinaria e riparazioni;1;"Manutenzione ordinaria e riparazioni di mezzi di trasporto ad uso civile, di sicurezza e ordine pubblico";19-01-2018;
26;1;52;"41,32";"41,32";INTERDONATO GIACOMO S.N.C.; ;SALDO Fatt.n. 000007-2017-FE  del 20/12/2017 buoni libro a.s.2017/18;11-01-2018;2000;10;450;1;Spese correnti;3;Acquisto di beni e servizi;2;Acquisto di servizi;99;Altri servizi;999;Altri servizi diversi n.a.c.;19-01-2018;
27;1;53;"75,94";"75,94";AUTOLINEE MAGISTRO SRL;Z9D1FE4BDA;SALDO Fatt.n. FATTPA 130_17  del 29/12/2017 TRASPORTO STUDENTI DIC.2017;11-01-2018;2000;9;282;1;Spese correnti;3;Acquisto di beni e servizi;2;Acquisto di servizi;15;Contratti di servizio pubblico;2;Contratti di servizio di trasporto scolastico;19-01-2018;
28;1;54;"575,49";"575,49";T.A.I. SRL;Z441FE4B65;SALDO Fatt.n. FATTPA 19_17  del 29/12/2017 TRASPORTO STUDENTI DIC.2018;11-01-2018;2000;9;281;1;Spese correnti;3;Acquisto di beni e servizi;2;Acquisto di servizi;15;Contratti di servizio pubblico;2;Contratti di servizio di trasporto scolastico;19-01-2018;
29;1;55;"0,01";"3.447,88";SOCIETA' COOP.  NUOVI ORIZZONTI ARL;ZF61EOF9D7;ACCONTO Fatt.n. 1/P.A.  del 02/01/2018 INTERVENTI IN FAVORE DELLE PERSONE IN CONDIZIONE DI DISABILITA' GRAVISSIMA/2014;11-01-2018;1884;1;456;1;Spese correnti;4;Trasferimenti correnti;2;Trasferimenti correnti a Famiglie;1;Interventi previdenziali;999;Altri sussidi e assegni;19-01-2018;
29;2;55;"3.447,87";"3.447,88";SOCIETA' COOP.  NUOVI ORIZZONTI ARL;ZF61EOF9D7;SALDO Fatt.n. 1/P.A.  del 02/01/2018 INTERVENTI IN FAVORE DELLE PERSONE IN CONDIZIONE DI DISABILITA' GRAVISSIMA/2014;11-01-2018;1884;1;456;1;Spese correnti;4;Trasferimenti correnti;2;Trasferimenti correnti a Famiglie;1;Interventi previdenziali;999;Altri sussidi e assegni;19-01-2018;
30;1;56;"6.015,75";"6.015,75";BENFATTA SALVATORE & C. S.N.C.;Z092176D04;SALDO Fatt.n. 000009-2017-FATTURE  del 22/12/2017 IMPEGNO SPESA N.195 DEL 14/11/2017-ripristino condotta idrica;11-01-2018;4035;0;516;2;Spese in conto capitale;2;Investimenti fissi lordi e acquisto di terreni;1;Beni materiali;9;Beni immobili;13;Altre vie di comunicazione;19-01-2018;
31;1;57;"6.849,91";"6.849,91";SICULA TRASPORTI S.R.L.;6150991658;SALDO Fatt.n. 2265/03  del 30/11/2017 conferimento rifiuti in discarica nov.2017;11-01-2018;1743;0;511;1;Spese correnti;3;Acquisto di beni e servizi;2;Acquisto di servizi;15;Contratti di servizio pubblico;5;Contratti di servizio per il conferimento in discarica dei rifiuti;19-01-2018;
32;1;58;"1.568,16";"1.568,16";Pi.Eco S.r.l.;Z1D1B9D2D9;SALDO Fatt.n. 235  del 22/12/2017 conferimento rifiuti nov.2017;11-01-2018;1743;0;512;1;Spese correnti;3;Acquisto di beni e servizi;2;Acquisto di servizi;15;Contratti di servizio pubblico;5;Contratti di servizio per il conferimento in discarica dei rifiuti;19-01-2018;
33;1;59;"5.217,72";"5.217,72";COOP. SOCIALE ORCHIDEA;Z432014AD5;SALDO Fatt.n. 12 E  del 09/12/2017 preparazione pasti mensa scolastica mese di nov.2017;11-01-2018;2000;8;398;1;Spese correnti;3;Acquisto di beni e servizi;2;Acquisto di servizi;15;Contratti di servizio pubblico;6;Contratti di servizio per le mense scolastiche;19-01-2018;
34;1;20;"400,00";"400,00";SICA LUCREZIA ELISABETTA BEATRICE; ;assistenza economica 2017;11-01-2018;1900;0;449;1;Spese correnti;4;Trasferimenti correnti;2;Trasferimenti correnti a Famiglie;1;Interventi previdenziali;999;Altri sussidi e assegni;18-01-2018;
35;1;108;"217,50";"217,50";AGENZIA DELLE ENTRATE; ;registrazione sentenza giudice di pace n.129/2017;11-01-2018;1058;0;497;1;Spese correnti;3;Acquisto di beni e servizi;2;Acquisto di servizi;99;Altri servizi;2;Altre spese legali;25-01-2018;
36;1;60;"2.891,58";"2.891,58";CONSORZIO INTERCOMUNALE TINDARI-NEBRODI; ;PARCO DEI MITI - QUOTA ADESIONE ANNO 2017;11-01-2018;1060;7;477;1;Spese correnti;4;Trasferimenti correnti;1;Trasferimenti correnti a Amministrazioni Pubbliche;2;Trasferimenti correnti a Amministrazioni Locali;3;Trasferimenti correnti a Comuni;19-01-2018;
37;1;61;"7.000,00";"7.000,00";CONSORZIO INTERCOMUNALE TINDARI-NEBRODI; ;CONSORZIO TINDARI NEBRODI ANNO 2017;11-01-2018;1060;5;478;1;Spese correnti;4;Trasferimenti correnti;1;Trasferimenti correnti a Amministrazioni Pubbliche;2;Trasferimenti correnti a Amministrazioni Locali;5;Trasferimenti correnti a Unioni di Comuni;19-01-2018;
39;1;21;"1.450,00";"1.450,00";GERMANA' AGOSTINO; ;Vertenza comune/minore A.G.-Transazione;12-01-2018;1058;0;371;1;Spese correnti;3;Acquisto di beni e servizi;2;Acquisto di servizi;99;Altri servizi;2;Altre spese legali;18-01-2018;
40;1;22;"550,00";"550,00";CANZONIERI DAVIDE; ;SALDO Fatt.n. 000001-2017-PA  del 11/12/2017 comp. transazione causa n.313/2017;12-01-2018;1058;0;371;1;Spese correnti;3;Acquisto di beni e servizi;2;Acquisto di servizi;99;Altri servizi;2;Altre spese legali;18-01-2018;
41;1;23;"500,00";"500,00";VENTIMIGLIA LUCIA;Z432014AD5;SALDO Fatt.n. 1  del 28/11/2017 COMP. COMPONENTE COMMISSIONE GARA MENSA SCOLASTICA;12-01-2018;2000;8;402;1;Spese correnti;3;Acquisto di beni e servizi;2;Acquisto di servizi;15;Contratti di servizio pubblico;6;Contratti di servizio per le mense scolastiche;18-01-2018;
42;1;1;"22,54";"23,57";AUTOSTRADE PER L'ITALIA S.p.A.;0;ACCONTO Fatt.n. 900026485D  del 30/12/2017 TELEPASS DIC.2017;12-01-2018;1017;0;38;1;Spese correnti;3;Acquisto di beni e servizi;2;Acquisto di servizi;99;Altri servizi;999;Altri servizi diversi n.a.c.;18-01-2018;
42;2;1;"1,03";"23,57";TELEPASS SPA;0;ACCONTO Fatt.n. 900026637T  del 30/12/2017 CANONE TELEPASS DIC.2017;12-01-2018;1017;0;38;1;Spese correnti;3;Acquisto di beni e servizi;2;Acquisto di servizi;99;Altri servizi;999;Altri servizi diversi n.a.c.;18-01-2018;
43;1;24;"4,96";"5,19";AUTOSTRADE PER L'ITALIA S.p.A.; ;SALDO Fatt.n. 900026485D  del 30/12/2017 TELEPASS DIC.2017;12-01-2018;1017;0;38;1;Spese correnti;3;Acquisto di beni e servizi;2;Acquisto di servizi;99;Altri servizi;999;Altri servizi diversi n.a.c.;18-01-2018;
43;2;25;"0,23";"5,19";TELEPASS SPA; ;SALDO Fatt.n. 900026637T  del 30/12/2017 CANONE TELEPASS DIC.2017;12-01-2018;1017;0;38;1;Spese correnti;3;Acquisto di beni e servizi;2;Acquisto di servizi;99;Altri servizi;999;Altri servizi diversi n.a.c.;18-01-2018;
44;1;26;"133,08";"133,08";ECONOMO COMUNALE; ;RIMBORSO SPESE ECONOMATO 4^ TRIMESTRE 2017 - MESE DI DICEMBRE -;12-01-2018;1410;0;321;1;Spese correnti;3;Acquisto di beni e servizi;2;Acquisto di servizi;99;Altri servizi;999;Altri servizi diversi n.a.c.;18-01-2018;
45;1;27;"297,44";"297,44";ECONOMO COMUNALE; ;RIMBORSO SPESE ECONOMATO 4^ TRIMESTRE 2017 - MESE DI DICEMBRE -;12-01-2018;2140;5;351;1;Spese correnti;3;Acquisto di beni e servizi;1;Acquisto di beni;2;Altri beni di consumo;6;Materiale informatico;18-01-2018;
46;1;28;"100,00";"100,00";ECONOMO COMUNALE; ;RIMBORSO SPESE ECONOMATO 4^ TRIMESTRE 2017 - MESE DI DICEMBRE -;12-01-2018;6050;0;326;1;Spese correnti;3;Acquisto di beni e servizi;1;Acquisto di beni;2;Altri beni di consumo;1;"Carta, cancelleria e stampati";18-01-2018;
47;1;29;"5,00";"5,00";ECONOMO COMUNALE; ;RIMBORSO SPESE ECONOMATO 4^ TRIMESTRE 2017 - MESE DI DICEMBRE -;12-01-2018;6050;3;346;1;Spese correnti;3;Acquisto di beni e servizi;1;Acquisto di beni;2;Altri beni di consumo;1;"Carta, cancelleria e stampati";18-01-2018;
48;1;30;"100,00";"100,00";ECONOMO COMUNALE; ;RIMBORSO SPESE ECONOMATO 4^ TRIMESTRE 2017 - MESE DI DICEMBRE -;12-01-2018;6050;5;327;1;Spese correnti;3;Acquisto di beni e servizi;1;Acquisto di beni;2;Altri beni di consumo;1;"Carta, cancelleria e stampati";18-01-2018;
49;1;31;"186,07";"186,07";ECONOMO COMUNALE; ;RIMBORSO SPESE ECONOMATO 4^ TRIMESTRE 2017 - MESE DI DICEMBRE -;12-01-2018;6050;14;359;1;Spese correnti;3;Acquisto di beni e servizi;1;Acquisto di beni;2;Altri beni di consumo;1;"Carta, cancelleria e stampati";18-01-2018;
50;1;32;"906,88";"906,88";ECONOMO COMUNALE; ;RIMBORSO SPESE ECONOMATO PER REALIZZAZIONE MANIFESTAZIONI NATALIZIE ANNO 2017 .;12-01-2018;1520;1;430;1;Spese correnti;3;Acquisto di beni e servizi;2;Acquisto di servizi;2;"Organizzazione eventi, pubblicita` e servizi per trasferta";5;Organizzazione e partecipazione a manifestazioni e convegni;18-01-2018;
54;1;33;"1.849,79";"1.849,79";Wind Tre S.p.A.; ;SALDO Fatt.n. 2017E000011030  del 19/12/2017 canoni 19/09-31/10/17-periodo 01/09-31/10/17;18-01-2018;6040;5;390;1;Spese correnti;3;Acquisto di beni e servizi;2;Acquisto di servizi;5;Utenze e canoni;1;Telefonia fissa;18-01-2018;
55;1;73;"1.000,00";"1.000,00";AZIENDA SANITARIA PROVINCIALE N.5; ;PARERE IGIENICO SANITARIO OPERE CONSOLIDAMENTO TORRE-MARGI;18-01-2018;1086;1;9;1;Spese correnti;3;Acquisto di beni e servizi;2;Acquisto di servizi;10;Consulenze;1;"Incarichi libero professionali di studi, ricerca e consulenza";23-01-2018;
58;1;76;"204,00";"204,00";AZIENDA SANITARIA PROVINCIALE N.5; ;VIDIMAZIONE TABELLE DIETETICHE  ASILO NIDO ANNO 2018;18-01-2018;1776;1;377;1;Spese correnti;3;Acquisto di beni e servizi;1;Acquisto di beni;2;Altri beni di consumo;999;Altri beni e materiali di consumo n.a.c.;23-01-2018;
59;1;34;"450,00";"450,00";UNIPOL  ASSICURAZIONI;Z122155916;polizza ass.va anziani centro di aggregazione 2017/2018;18-01-2018;1878;9;455;1;Spese correnti;3;Acquisto di beni e servizi;1;Acquisto di beni;2;Altri beni di consumo;999;Altri beni e materiali di consumo n.a.c.;18-01-2018;
60;1;35;"1.521,73";"3.096,06";EUROPAPROGETTI S.R.L - SOCIETÃ  DI INGEGNERIA E ARCHITE; ;SALDO Fatt.n. FATTPA 7_17  del 13/07/2017 COMP. COMMISSIONE AGGIUDICATRICE AFFIDAMENTO PROJECT FINANCING LOCULI CIMITERIALI;18-01-2018;1675;0;521;1;Spese correnti;10;Altre spese correnti;99;Altre spese correnti n.a.c.;99;Altre spese correnti n.a.c.;999;Altre spese correnti n.a.c.;18-01-2018;
60;2;36;"1.574,33";"3.096,06";MAZZA LOREDANA; ;"SALDO Fatt.n. 13E  del 04/09/2017 PROCEDURA APERTA PER L'AFFIDAMENTO IN CONCESSIONE MEDIANTE L'ISTITUTO DEL PROJECT FINANCING, CON DIRITTO DI PRELAZIONE DA PARTE DEL PROMOTORE DELL'INTERVENTO DI PROGETTAZIONE, COSTRUZIONE, MANUTENZIONE LOCULI CIMITER";18-01-2018;1675;0;521;1;Spese correnti;10;Altre spese correnti;99;Altre spese correnti n.a.c.;99;Altre spese correnti n.a.c.;999;Altre spese correnti n.a.c.;18-01-2018;
61;1;37;"30.736,06";"30.736,06";PIZZO PIPPO;Z5B1C690E9;"ACCONTO Fatt.n. 61|2017  del 31/08/2017 Serv. spazzamento,raccolta,trasporto rr.ss.uu. dicembre 2016";18-01-2018;2177;1;539;1;Spese correnti;10;Altre spese correnti;99;Altre spese correnti n.a.c.;99;Altre spese correnti n.a.c.;999;Altre spese correnti n.a.c.;18-01-2018;
62;1;38;"3.696,32";"3.696,32";PIZZO PIPPO;Z5B1C690E9;"SALDO Fatt.n. 61|2017  del 31/08/2017 Serv. spazzamento,raccolta,trasporto rr.ss.uu. dicembre 2016";18-01-2018;10600;7;540;1;Spese correnti;10;Altre spese correnti;99;Altre spese correnti n.a.c.;99;Altre spese correnti n.a.c.;999;Altre spese correnti n.a.c.;18-01-2018;
63;1;39;"15.782,77";"15.782,77";LAMANCUSA MARIA; ;CONTRIBUTO MIGLIORAMENTO SISMICO IMMOBILE C/DA RAMONDINO;18-01-2018;4070;0;534;2;Spese in conto capitale;4;Altri trasferimenti in conto capitale;2;Altri trasferimenti in conto capitale per assunzione di debiti di Famiglie;1;Altri trasferimenti in conto capitale per assunzione di debiti di Famiglie;1;Altri trasferimenti in conto capitale per assunzione di debiti di Famiglie;18-01-2018;
67;1;176;"42,00";"42,00";CITTA'  METROPOLITANA DI MESSINA; ;QUOTA 20% PROVENTI TESSERINO RACCOLTA FUNGHI ANNO 2017;19-01-2018;1200;0;444;1;Spese correnti;4;Trasferimenti correnti;1;Trasferimenti correnti a Amministrazioni Pubbliche;2;Trasferimenti correnti a Amministrazioni Locali;2;Trasferimenti correnti a Province;30-01-2018;
68;1;63;"63,00";"63,00";UNICREDIT-CASSA REG.LE MESSINA; ;QUOTA 30% PROVENTI TESSERINO RACCOLTA FUNGHI ANNO 2017;19-01-2018;1200;1;445;1;Spese correnti;4;Trasferimenti correnti;1;Trasferimenti correnti a Amministrazioni Pubbliche;2;Trasferimenti correnti a Amministrazioni Locali;1;Trasferimenti correnti a Regioni e province autonome;19-01-2018;
69;1;64;"1.210,00";"1.210,00";PROCOPIO GIOVANNI;Z4E212BCE4;SALDO Fatt.n. 02/PA  del 28/12/2017 FORNITURA MATERIALE;19-01-2018;1477;0;416;1;Spese correnti;10;Altre spese correnti;99;Altre spese correnti n.a.c.;99;Altre spese correnti n.a.c.;999;Altre spese correnti n.a.c.;19-01-2018;
70;1;65;"2.177,70";"2.177,70";HALLEY SUD SRL;Z001C8D941;SALDO Fatt.n. 201800048  del 09/01/2018 Canone di assistenza Software dal 01/10/2017 al 31/12/2017;19-01-2018;2100;2;496;1;Spese correnti;3;Acquisto di beni e servizi;2;Acquisto di servizi;19;Servizi informatici e di telecomunicazioni;5;Servizi per i sistemi e relativa manutenzione;19-01-2018;
71;1;66;"-0,01";"2.676,01";SOCIETA' COOP.  NUOVI ORIZZONTI ARL;6935897345;"ACCONTO Fatt.n. 2/P.A.  del 11/01/2018 SERVIZIO DI ASSISTENZA DOMICILIARE RIVOLTO AGLI ANZIANI, AI DIVERSAMENTE ABILI, AI MINORI ED AI NUCLEI FAMILIARI IN CONDIZIONI DI DISAGIO. - ANNO 2017 VERBALE DI AFFIDAMENTO PER L'ESECUZIONE D'URGENZA";19-01-2018;1878;2;329;1;Spese correnti;3;Acquisto di beni e servizi;2;Acquisto di servizi;15;Contratti di servizio pubblico;9;Contratti di servizio di assistenza sociale domiciliare;19-01-2018;
71;2;66;"2.676,02";"2.676,01";SOCIETA' COOP.  NUOVI ORIZZONTI ARL;6935897345;"ACCONTO Fatt.n. 2/P.A.  del 11/01/2018 SERVIZIO DI ASSISTENZA DOMICILIARE RIVOLTO AGLI ANZIANI, AI DIVERSAMENTE ABILI, AI MINORI ED AI NUCLEI FAMILIARI IN CONDIZIONI DI DISAGIO. - ANNO 2017 VERBALE DI AFFIDAMENTO PER L'ESECUZIONE D'URGENZA";19-01-2018;1878;2;329;1;Spese correnti;3;Acquisto di beni e servizi;2;Acquisto di servizi;15;Contratti di servizio pubblico;9;Contratti di servizio di assistenza sociale domiciliare;19-01-2018;
72;1;67;"3.664,46";"3.664,46";SOCIETA' COOP.  NUOVI ORIZZONTI ARL;6935897345;"SALDO Fatt.n. 2/P.A.  del 11/01/2018 SERVIZIO DI ASSISTENZA DOMICILIARE RIVOLTO AGLI ANZIANI, AI DIVERSAMENTE ABILI, AI MINORI ED AI NUCLEI FAMILIARI IN CONDIZIONI DI DISAGIO. - ANNO 2017 VERBALE DI AFFIDAMENTO PER L'ESECUZIONE D'URGENZA";19-01-2018;1878;2;411;1;Spese correnti;3;Acquisto di beni e servizi;2;Acquisto di servizi;15;Contratti di servizio pubblico;9;Contratti di servizio di assistenza sociale domiciliare;19-01-2018;
73;1;68;"760,00";"760,00";ENEL ENERGIA SPA; ;SALDO Fatt.n. 004810095413  del 10/01/2018 FATTURAZIONE DIC.2017;19-01-2018;6030;5;412;1;Spese correnti;3;Acquisto di beni e servizi;2;Acquisto di servizi;5;Utenze e canoni;4;Energia elettrica;19-01-2018;
74;1;69;"358,73";"7.415,52";ENEL ENERGIA SPA; ;SALDO Fatt.n. 004810095411  del 10/01/2018 FATTURAZIONE DIC.2017;19-01-2018;6030;12;419;1;Spese correnti;3;Acquisto di beni e servizi;2;Acquisto di servizi;5;Utenze e canoni;4;Energia elettrica;19-01-2018;
74;2;69;"7.056,79";"7.415,52";ENEL ENERGIA SPA; ;SALDO Fatt.n. 004810095412  del 10/01/2018 FATTURAZIONE DIC.2017;19-01-2018;6030;12;419;1;Spese correnti;3;Acquisto di beni e servizi;2;Acquisto di servizi;5;Utenze e canoni;4;Energia elettrica;19-01-2018;
75;1;177;"830,32";"830,32";GAS NATURALVENDITA ITALIA SPA; ;Fatt.n. FI18366000000338 del 03/01/2018 FATTURAZIONE 11/08-22/12/17;19-01-2018;6160;0;430;1;Spese correnti;3;Acquisto di beni e servizi;2;Acquisto di servizi;5;Utenze e canoni;6;Gas;30-01-2018;
76;1;178;"232,78";"232,78";GAS NATURALVENDITA ITALIA SPA; ;Fatt.n. FI18366000000337 del 03/01/2018 FATTURAZIONE 13/08-22/12/17;19-01-2018;6160;1;431;1;Spese correnti;3;Acquisto di beni e servizi;2;Acquisto di servizi;5;Utenze e canoni;999;Utenze e canoni per altri servizi n.a.c.;30-01-2018;
77;1;180;"32,67";"32,67";GAS NATURALVENDITA ITALIA SPA; ;Fatt.n. FI18366000000160 del 03/01/2018 FATTURAZIONE 25/10-22/12/17;19-01-2018;6160;2;432;1;Spese correnti;3;Acquisto di beni e servizi;2;Acquisto di servizi;5;Utenze e canoni;999;Utenze e canoni per altri servizi n.a.c.;30-01-2018;
78;1;179;"1.277,55";"1.277,55";GAS NATURALVENDITA ITALIA SPA; ;Fatt.n. FI18366000000216 del 03/01/2018 FATTURAZIONE 07/11-22/12/17;19-01-2018;6160;3;433;1;Spese correnti;3;Acquisto di beni e servizi;2;Acquisto di servizi;5;Utenze e canoni;6;Gas;30-01-2018;
79;1;109;"1,12";"1,12";MINISTERO DELL'INTERNO-ALBO NAZ.SEGRETARI COM. E PROV.; ;diritti segreteria I trim.2017;19-01-2018;1037;1;65;1;Spese correnti;4;Trasferimenti correnti;1;Trasferimenti correnti a Amministrazioni Pubbliche;2;Trasferimenti correnti a Amministrazioni Locali;999;Trasferimenti correnti a altre Amministrazioni Locali n.a.c.;25-01-2018;
80;1;110;"2,28";"2,28";MINISTERO DELL'INTERNO-ALBO NAZ.SEGRETARI COM. E PROV.; ;DIRITTI SEGRETERIA II SEM. 2017;19-01-2018;1037;1;188;1;Spese correnti;4;Trasferimenti correnti;1;Trasferimenti correnti a Amministrazioni Pubbliche;2;Trasferimenti correnti a Amministrazioni Locali;999;Trasferimenti correnti a altre Amministrazioni Locali n.a.c.;25-01-2018;
81;1;111;"5,62";"5,62";MINISTERO DELL'INTERNO-ALBO NAZ.SEGRETARI COM. E PROV.; ;DIRITTI SEGRETERIA IV TRIM.2017;19-01-2018;1037;1;498;1;Spese correnti;4;Trasferimenti correnti;1;Trasferimenti correnti a Amministrazioni Pubbliche;2;Trasferimenti correnti a Amministrazioni Locali;999;Trasferimenti correnti a altre Amministrazioni Locali n.a.c.;25-01-2018;
82;1;70;"0,05";"865,49";AL CENTESIMO SOC. COOP. S.R.L.;ZD01C2A31C;SALDO Fatt.n. 34/E  del 26/12/2017 generi alimentari e materiale d'uso per asilo nido dic.2017;19-01-2018;1776;1;197;1;Spese correnti;3;Acquisto di beni e servizi;1;Acquisto di beni;2;Altri beni di consumo;999;Altri beni e materiali di consumo n.a.c.;19-01-2018;
82;2;70;"865,44";"865,49";AL CENTESIMO SOC. COOP. S.R.L.;ZD01C2A31C;ACCONTO Fatt.n. 34/E  del 26/12/2017 generi alimentari e materiale d'uso per asilo nido dic.2017;19-01-2018;1776;1;197;1;Spese correnti;3;Acquisto di beni e servizi;1;Acquisto di beni;2;Altri beni di consumo;999;Altri beni e materiali di consumo n.a.c.;19-01-2018;
83;1;71;"34,75";"154,64";AL CENTESIMO SOC. COOP. S.R.L.;ZD01C2A31C;SALDO Fatt.n. 36/E  del 26/12/2017 CARNE PER ASILO NIDO DIC.2017;19-01-2018;1776;1;197;1;Spese correnti;3;Acquisto di beni e servizi;1;Acquisto di beni;2;Altri beni di consumo;999;Altri beni e materiali di consumo n.a.c.;19-01-2018;
83;2;71;"119,89";"154,64";AL CENTESIMO SOC. COOP. S.R.L.;ZD01C2A31C;SALDO Fatt.n. 35/E  del 26/12/2017 carne  per asilo nido dic.2017;19-01-2018;1776;1;197;1;Spese correnti;3;Acquisto di beni e servizi;1;Acquisto di beni;2;Altri beni di consumo;999;Altri beni e materiali di consumo n.a.c.;19-01-2018;
85;1;80;"2.887,50";"2.887,50";TESORIERE COMUNALE-CREDITO SICILIANO; ;MUTUO COSTRUZIONE 24 ALLOGGI POPOLARI-COMP. RUP;23-01-2018;5064;0;1428;2;Spese in conto capitale;2;Investimenti fissi lordi e acquisto di terreni;1;Beni materiali;9;Beni immobili;1;Fabbricati ad uso abitativo;24-01-2018;
87;1;167;"390,66";"547,68";DIPENDENTI COMUNALI;ZOA11DF579;D.D.G. N.413/04.10.13-REDAZIONE PAES-SPESE PERSONALE INTERNO-LAVORO STRAORDINARIO;23-01-2018;1581;0;521;1;Spese correnti;3;Acquisto di beni e servizi;2;Acquisto di servizi;99;Altri servizi;999;Altri servizi diversi n.a.c.;26-01-2018;
87;1;171;"157,02";"547,68";DIPENDENTI COMUNALI;ZOA11DF579;D.D.G. N.413/04.10.13-REDAZIONE PAES-SPESE PERSONALE INTERNO-LAVORO STRAORDINARIO;23-01-2018;1581;0;521;1;Spese correnti;3;Acquisto di beni e servizi;2;Acquisto di servizi;99;Altri servizi;999;Altri servizi diversi n.a.c.;26-01-2018;
135;1;100;"139,17";"139,17";AGENZIA DELLE ENTRATE;ZOA11DF579;D.D.G. N.413/04.10.13-REDAZIONE PAES-SPESE PERSONALE INTERNO-CPDEL  E D.S. SU LAVORO STRAORDINARIO;23-01-2018;1581;0;521;1;Spese correnti;3;Acquisto di beni e servizi;2;Acquisto di servizi;99;Altri servizi;999;Altri servizi diversi n.a.c.;24-01-2018;
136;1;101;"46,55";"46,55";AGENZIA DELLE ENTRATE;ZOA11DF579;D.D.G. N.413/04.10.13-REDAZIONE PAES-SPESE PERSONALE INTERNO-IRAP SU LAVORO STRAORDINARIO;23-01-2018;1581;0;521;1;Spese correnti;3;Acquisto di beni e servizi;2;Acquisto di servizi;99;Altri servizi;999;Altri servizi diversi n.a.c.;24-01-2018;
140;1;188;"7.173,60";"7.173,60";CREDITO SICILIANO; ;SALDO Fatt.n. 30  del 12/12/2017 Compenso per il servizio di tesoreria del periodo 01/01/2017 - 31/12/2017;30-01-2018;1054;0;434;1;Spese correnti;3;Acquisto di beni e servizi;2;Acquisto di servizi;15;Contratti di servizio pubblico;999;Altre spese per contratti di servizio pubblico;31-01-2018;
141;1;181;"668,00";"668,00";COSMAK S.R.L.;694246602F;SALDO Fatt.n. 10/E  del 11/10/2017 3 S.A.L. MARCIAPIEDE VIA N. DANTE;30-01-2018;5087;1;137;2;Spese in conto capitale;2;Investimenti fissi lordi e acquisto di terreni;1;Beni materiali;9;Beni immobili;13;Altre vie di comunicazione;30-01-2018;
142;1;182;"57,95";"345,50";CARTAREGIA COSIMO;ZDF17CEFAE;ACCONTO Fatt.n. 3/PA  del 12/01/2017 CONTRATTO NÂ°143/2016   DEL 29/02/2016-manutenz. imp. pubbl. illuminazione nov.2016;30-01-2018;3930;1;19;1;Spese correnti;3;Acquisto di beni e servizi;2;Acquisto di servizi;15;Contratti di servizio pubblico;999;Altre spese per contratti di servizio pubblico;30-01-2018;
142;2;182;"287,55";"345,50";CARTAREGIA COSIMO;ZDF17CEFAE;SALDO Fatt.n. 2/PA  del 12/01/2017 CONTRATTO NÂ°143/2016   DEL 29/02/2016-manutenz. imp. pubbl. illuminazione ott.2016;30-01-2018;3930;1;19;1;Spese correnti;3;Acquisto di beni e servizi;2;Acquisto di servizi;15;Contratti di servizio pubblico;999;Altre spese per contratti di servizio pubblico;30-01-2018;
143;1;183;"-11,54";"505,61";CARTAREGIA COSIMO;ZDF17CEFAE;SALDO Fatt.n. 23/PA  del 13/12/2017 STORNO SU NS. FATTURA NÂ°3/PA DEL 12/01/2017;30-01-2018;10600;7;536;1;Spese correnti;10;Altre spese correnti;99;Altre spese correnti n.a.c.;99;Altre spese correnti n.a.c.;999;Altre spese correnti n.a.c.;30-01-2018;
143;2;183;"229,60";"505,61";CARTAREGIA COSIMO;ZDF17CEFAE;SALDO Fatt.n. 3/PA  del 12/01/2017 CONTRATTO NÂ°143/2016   DEL 29/02/2016-manutenz. imp. pubbl. illuminazione nov.2016;30-01-2018;10600;7;536;1;Spese correnti;10;Altre spese correnti;99;Altre spese correnti n.a.c.;99;Altre spese correnti n.a.c.;999;Altre spese correnti n.a.c.;30-01-2018;
143;3;183;"287,55";"505,61";CARTAREGIA COSIMO;ZDF17CEFAE;SALDO Fatt.n. 4/PA  del 12/01/2017 CONTRATTO NÂ°143/2016   DEL 29/02/2016-manutenz. imp. pubbl. illuminazione dic.2016;30-01-2018;10600;7;536;1;Spese correnti;10;Altre spese correnti;99;Altre spese correnti n.a.c.;99;Altre spese correnti n.a.c.;999;Altre spese correnti n.a.c.;30-01-2018;
144;1;184;"976,81";"976,81";CARTAREGIA COSIMO; ;ACCONTO Fatt.n. 1/PA  del 03/03/2016 CONTRATTO NÂ°128/2014   DEL 12/02/2014-MANUTENZ. IMP. PUBBL. ILLUMINAZIONE IV TRIM.2015;30-01-2018;2177;1;528;1;Spese correnti;10;Altre spese correnti;99;Altre spese correnti n.a.c.;99;Altre spese correnti n.a.c.;999;Altre spese correnti n.a.c.;30-01-2018;
145;1;185;"310,00";"310,00";CARTAREGIA COSIMO; ;SALDO Fatt.n. 1/PA  del 03/03/2016 CONTRATTO NÂ°128/2014   DEL 12/02/2014-MANUTENZ. IMP. PUBBL. ILLUMINAZIONE IV TRIM.2015;30-01-2018;10600;7;535;1;Spese correnti;10;Altre spese correnti;99;Altre spese correnti n.a.c.;99;Altre spese correnti n.a.c.;999;Altre spese correnti n.a.c.;30-01-2018;
146;1;186;"897,92";"897,92";MATOS DI MANNINO GABRIELLA;Z272165DAB;SALDO Fatt.n. 93/E  del 28/12/2017 FORNITURA CAMICIE SCUOLA MUSICALE G.VERDI;30-01-2018;1477;0;475;1;Spese correnti;10;Altre spese correnti;99;Altre spese correnti n.a.c.;99;Altre spese correnti n.a.c.;999;Altre spese correnti n.a.c.;30-01-2018;
147;1;187;"1.089,74";"1.089,74";CARTAREGIA COSIMO;Z571F8C9B3;SALDO Fatt.n. 24/PA  del 29/12/2017 Rif. Determina prot. 125  del 01/08/2017-manutenz. imp. pubblica illuminazione nov.2017;30-01-2018;3930;1;211;1;Spese correnti;3;Acquisto di beni e servizi;2;Acquisto di servizi;15;Contratti di servizio pubblico;999;Altre spese per contratti di servizio pubblico;30-01-2018;
149;1;189;"38,21";"38,21";ENEL ENERGIA SPA;0000000000;SALDO Fatt.n. 004810151901  del 20/01/2018 FATT. NOV./DIC.2017;02-02-2018;6030;12;419;1;Spese correnti;3;Acquisto di beni e servizi;2;Acquisto di servizi;5;Utenze e canoni;4;Energia elettrica;02-02-2018;
150;1;190;"649,99";"649,99";Ass.Culturale Compagnia Joculares;ZEB2I4453C;SALDO Fatt.n. FATTPA 3_18  del 07/01/2018 FORNITURA SPETTACOLI;02-02-2018;1520;1;451;1;Spese correnti;3;Acquisto di beni e servizi;2;Acquisto di servizi;2;"Organizzazione eventi, pubblicita` e servizi per trasferta";5;Organizzazione e partecipazione a manifestazioni e convegni;02-02-2018;
152;1;192;"3.000,00";"3.000,00";CALABRO' SANTO; ;Riconoscimento debito f.b.  sentenza n.689/2016 Corte d'Appello di Messina;02-02-2018;2177;0;530;1;Spese correnti;10;Altre spese correnti;5;"Spese dovute a sanzioni, risarcimenti e indennizzi";4;Oneri da contenzioso;1;Oneri da contenzioso;02-02-2018;
153;1;193;"15.000,00";"15.000,00";BUZZANCA FLAVIA MARIA FIORENZA; ;"SALDO Fatt.n. 1/FE/18  del 12/01/2018 spese e compensi di avvocato per il giudizio promosso da Calabro' Santo/Comune di San Piero Patti, in persona del Sindaco p.t.";02-02-2018;10600;27;531;1;Spese correnti;10;Altre spese correnti;99;Altre spese correnti n.a.c.;99;Altre spese correnti n.a.c.;999;Altre spese correnti n.a.c.;02-02-2018;
154;1;194;"-70,60";"6.923,30";AZIENDA SICILIANA TRASPORTI;ZA81FE51C2;SALDO Fatt.n. 1/S4  del 03/01/2018 storno parziale fatt. n.130/s4 del 15/11/17;02-02-2018;2000;9;279;1;Spese correnti;3;Acquisto di beni e servizi;2;Acquisto di servizi;15;Contratti di servizio pubblico;2;Contratti di servizio di trasporto scolastico;02-02-2018;
154;2;194;"0,01";"6.923,30";AZIENDA SICILIANA TRASPORTI;ZA81FE51C2;SALDO Fatt.n. 130/S4  del 15/11/2017 TRASPORTO STUDENTI OTT.2017;02-02-2018;2000;9;279;1;Spese correnti;3;Acquisto di beni e servizi;2;Acquisto di servizi;15;Contratti di servizio pubblico;2;Contratti di servizio di trasporto scolastico;02-02-2018;
154;3;194;"6.993,89";"6.923,30";AZIENDA SICILIANA TRASPORTI;ZA81FE51C2;ACCONTO Fatt.n. 130/S4  del 15/11/2017 TRASPORTO STUDENTI OTT.2017;02-02-2018;2000;9;279;1;Spese correnti;3;Acquisto di beni e servizi;2;Acquisto di servizi;15;Contratti di servizio pubblico;2;Contratti di servizio di trasporto scolastico;02-02-2018;
155;1;195;"0,01";"7.673,70";AZIENDA SICILIANA TRASPORTI;ZA81FE51C2;ACCONTO Fatt.n. 11/S4  del 05/01/2018 TRASPORTO STUDENTI DIC.2018;02-02-2018;2000;9;279;1;Spese correnti;3;Acquisto di beni e servizi;2;Acquisto di servizi;15;Contratti di servizio pubblico;2;Contratti di servizio di trasporto scolastico;02-02-2018;
155;2;195;"791,69";"7.673,70";AZIENDA SICILIANA TRASPORTI;ZA81FE51C2;ACCONTO Fatt.n. 11/S4  del 05/01/2018 TRASPORTO STUDENTI DIC.2018;02-02-2018;2000;9;279;1;Spese correnti;3;Acquisto di beni e servizi;2;Acquisto di servizi;15;Contratti di servizio pubblico;2;Contratti di servizio di trasporto scolastico;02-02-2018;
155;3;195;"6.882,00";"7.673,70";AZIENDA SICILIANA TRASPORTI;ZA81FE51C2;SALDO Fatt.n. 142/S4  del 14/12/2017 trasporto studenti nov.2017;02-02-2018;2000;9;279;1;Spese correnti;3;Acquisto di beni e servizi;2;Acquisto di servizi;15;Contratti di servizio pubblico;2;Contratti di servizio di trasporto scolastico;02-02-2018;
156;1;196;"4.421,10";"4.421,10";AZIENDA SICILIANA TRASPORTI;ZA81FE51C2;SALDO Fatt.n. 11/S4  del 05/01/2018 TRASPORTO STUDENTI DIC.2018;02-02-2018;2000;9;509;1;Spese correnti;3;Acquisto di beni e servizi;2;Acquisto di servizi;15;Contratti di servizio pubblico;2;Contratti di servizio di trasporto scolastico;02-02-2018;
157;1;198;"1.518,37";"1.670,20";FIORE SALVATORE VITTORIO; ;INDENNITA' FUNZIONE gen. 2018;05-02-2018;1001;0;18;1;Spese correnti;3;Acquisto di beni e servizi;2;Acquisto di servizi;1;Organi e incarichi istituzionali dell'amministrazione;1;Organi istituzionali dell'amministrazione - Indennità;05-02-2018;
157;2;199;"151,83";"1.670,20";INTERDONATO ARMANDO; ;INDENNITA' FUNZIONE gen. 2018;05-02-2018;1001;0;18;1;Spese correnti;3;Acquisto di beni e servizi;2;Acquisto di servizi;1;Organi e incarichi istituzionali dell'amministrazione;1;Organi istituzionali dell'amministrazione - Indennità;05-02-2018;
171;1;288;"1.775,51";"1.775,51";AGENZIA DELLE ENTRATE; ;AUTOLIQUIDAZIONE INAIL SALDO 2017 E ACC. 2018;07-02-2018;2158;1;0;1;Spese correnti;3;Acquisto di beni e servizi;2;Acquisto di servizi;99;Altri servizi;999;Altri servizi diversi n.a.c.;16-02-2018;
173;1;201;"3.970,61";"3.970,61";ANTONINO MASTRANTONIO "EDIL M.A.S." COSTRUZIONI;Z60215B1C3;SALDO Fatt.n. 000003-2017-FE  del 18/12/2017 SALDO INTERVENTI URGENTI;07-02-2018;10600;7;550;1;Spese correnti;10;Altre spese correnti;99;Altre spese correnti n.a.c.;99;Altre spese correnti n.a.c.;999;Altre spese correnti n.a.c.;07-02-2018;
174;1;202;"1.403,94";"1.403,94";COMUNE DI PATTI; ;ANTICIPAZIONE AL DISTRETTO SOCIO SANITARIO PER ACQUISTO MATERIALE PER ASILO NIDO;07-02-2018;2013;0;473;1;Spese correnti;3;Acquisto di beni e servizi;2;Acquisto di servizi;99;Altri servizi;999;Altri servizi diversi n.a.c.;07-02-2018;
175;1;203;"11.330,65";"11.330,65";Eco.Geos S.r.l.;7258614DC0;ACCONTO Fatt.n. 49|2017  del 30/12/2017 serv. raccolra rr.ss.uu. dic.2017;08-02-2018;1744;0;434;1;Spese correnti;3;Acquisto di beni e servizi;2;Acquisto di servizi;15;Contratti di servizio pubblico;5;Contratti di servizio per il conferimento in discarica dei rifiuti;08-02-2018;
176;1;204;"3.869,31";"3.869,31";Eco.Geos S.r.l.;7258614DC0;ACCONTO Fatt.n. 49|2017  del 30/12/2017 serv. raccolra rr.ss.uu. dic.2017;08-02-2018;1744;0;435;1;Spese correnti;3;Acquisto di beni e servizi;2;Acquisto di servizi;15;Contratti di servizio pubblico;5;Contratti di servizio per il conferimento in discarica dei rifiuti;08-02-2018;
177;1;205;"2.932,14";"2.932,14";Eco.Geos S.r.l.;7258614DC0;SALDO Fatt.n. 49|2017  del 30/12/2017 serv. raccolra rr.ss.uu. dic.2017;08-02-2018;1744;0;436;1;Spese correnti;3;Acquisto di beni e servizi;2;Acquisto di servizi;15;Contratti di servizio pubblico;5;Contratti di servizio per il conferimento in discarica dei rifiuti;08-02-2018;
178;1;206;"153,01";"153,01";KUWAIT PETROLEUM ITALIA S.P.A.;6516542493;Fatt.n. PJ00110838 del 31/12/2017 carburante dic.2017;08-02-2018;6080;2;25;1;Spese correnti;3;Acquisto di beni e servizi;1;Acquisto di beni;2;Altri beni di consumo;2;"Carburanti, combustibili e lubrificanti";08-02-2018;
179;1;207;"1.474,00";"1.474,00";KUWAIT PETROLEUM ITALIA S.P.A.;6516542493;Fatt.n. PJ00110838 del 31/12/2017 carburante dic.2017;08-02-2018;6080;3;26;1;Spese correnti;3;Acquisto di beni e servizi;1;Acquisto di beni;2;Altri beni di consumo;2;"Carburanti, combustibili e lubrificanti";08-02-2018;
180;1;208;"234,00";"234,00";KUWAIT PETROLEUM ITALIA S.P.A.;6516542493;Fatt.n. PJ00110838 del 31/12/2017 carburante dic.2017;08-02-2018;6080;4;27;1;Spese correnti;3;Acquisto di beni e servizi;1;Acquisto di beni;2;Altri beni di consumo;2;"Carburanti, combustibili e lubrificanti";08-02-2018;
181;1;209;"70,00";"70,00";KUWAIT PETROLEUM ITALIA S.P.A.;6516542493;Fatt.n. PJ00110838 del 31/12/2017 carburante dic.2017;08-02-2018;6080;7;29;1;Spese correnti;3;Acquisto di beni e servizi;1;Acquisto di beni;2;Altri beni di consumo;2;"Carburanti, combustibili e lubrificanti";08-02-2018;
182;1;210;"1.090,00";"1.090,00";GIARDINA VIAGGI SRL;ZBA1FE4AD8;SALDO Fatt.n. 19E  del 15/01/2018 trasporto studenti nov.2017;08-02-2018;2000;9;280;1;Spese correnti;3;Acquisto di beni e servizi;2;Acquisto di servizi;15;Contratti di servizio pubblico;2;Contratti di servizio di trasporto scolastico;08-02-2018;
183;1;211;"1.907,01";"1.907,01";LOPRESTI MARIA GABRIELLA; ;SALDO Fatt.n. 5/E  del 12/01/2018 COMP. REVISORE DEI CONTI IV TRIM.2017;08-02-2018;1046;0;115;1;Spese correnti;3;Acquisto di beni e servizi;2;Acquisto di servizi;1;Organi e incarichi istituzionali dell'amministrazione;1;Organi istituzionali dell'amministrazione - Indennità;08-02-2018;
184;1;231;"162,26";"162,26";TELECOM ITALIA S.P.A.-TIM SPA; ;SALDO Fatt.n. 8V00018152  del 09/01/2018 F. I BIM. 2018 IST. COMPRENSIVO;08-02-2018;6040;9;392;1;Spese correnti;3;Acquisto di beni e servizi;2;Acquisto di servizi;5;Utenze e canoni;1;Telefonia fissa;09-02-2018;
185;1;212;"93,67";"850,61";SCAFIDI GIUSEPPE;ZC417E0C95;SALDO Fatt.n. 000055-2017-FE  del 31/12/2017 RIFERIMENTO PREVENTIVO 115/2017 DEL 28/12/2017 SU FIAT PANDA TG BE 181 ZH;08-02-2018;6070;5;405;1;Spese correnti;3;Acquisto di beni e servizi;2;Acquisto di servizi;9;Manutenzione ordinaria e riparazioni;1;"Manutenzione ordinaria e riparazioni di mezzi di trasporto ad uso civile, di sicurezza e ordine pubblico";08-02-2018;
185;2;212;"136,20";"850,61";SCAFIDI GIUSEPPE;ZC417E0C95;SALDO Fatt.n. 000057-2017-FE  del 31/12/2017 RIFERIMENTO PREVENTIVO 96/2017 DEL 7/12/2017 SU FIAT PANDA TG BE 181 ZH;08-02-2018;6070;5;405;1;Spese correnti;3;Acquisto di beni e servizi;2;Acquisto di servizi;9;Manutenzione ordinaria e riparazioni;1;"Manutenzione ordinaria e riparazioni di mezzi di trasporto ad uso civile, di sicurezza e ordine pubblico";08-02-2018;
185;3;212;"620,74";"850,61";SCAFIDI GIUSEPPE;ZC417E0C95;SALDO Fatt.n. 000056-2017-FE  del 31/12/2017 RIFERIMENTO PREVENTIVO 111/2017 DEL 27/12/2017 SU AUTOBOTTE TG ME 394965;08-02-2018;6070;5;405;1;Spese correnti;3;Acquisto di beni e servizi;2;Acquisto di servizi;9;Manutenzione ordinaria e riparazioni;1;"Manutenzione ordinaria e riparazioni di mezzi di trasporto ad uso civile, di sicurezza e ordine pubblico";08-02-2018;
186;1;213;"223,10";"223,10";SCAFIDI GIUSEPPE;ZC417E0C95;SALDO Fatt.n. 000058-2017-FE  del 31/12/2017 RIFERIMENTO PREVENTIVO 98/2017 DEL 07/12/2017 SU SCUOLABUS IVECO DAILY TG CT 914 ML;08-02-2018;6070;9;407;1;Spese correnti;3;Acquisto di beni e servizi;2;Acquisto di servizi;9;Manutenzione ordinaria e riparazioni;1;"Manutenzione ordinaria e riparazioni di mezzi di trasporto ad uso civile, di sicurezza e ordine pubblico";08-02-2018;
187;1;214;"233,29";"233,29";SCAFIDI GIUSEPPE;ZCB17E106E;SALDO Fatt.n. 000053-2017-FE  del 27/12/2017 RIFERIMENTO PREVENTIVO N.95/2017 DEL 28/11/2017 SU SCUOLABUS IVECO DAILY TG CT 940 ML;08-02-2018;6070;9;514;1;Spese correnti;3;Acquisto di beni e servizi;2;Acquisto di servizi;9;Manutenzione ordinaria e riparazioni;1;"Manutenzione ordinaria e riparazioni di mezzi di trasporto ad uso civile, di sicurezza e ordine pubblico";08-02-2018;
188;1;215;"115,12";"230,24";SCAFIDI GIUSEPPE;ZCB17E106E;SALDO Fatt.n. 000054-2017-FE  del 27/12/2017 RIFERIMENTO PREVENTIVO N.105/2017 DEL 07/12/2017 SU FIAT PANDA TG BE 181 ZH;08-02-2018;6070;5;512;1;Spese correnti;3;Acquisto di beni e servizi;2;Acquisto di servizi;9;Manutenzione ordinaria e riparazioni;1;"Manutenzione ordinaria e riparazioni di mezzi di trasporto ad uso civile, di sicurezza e ordine pubblico";08-02-2018;
188;2;215;"115,12";"230,24";SCAFIDI GIUSEPPE;ZCB17E106E;SALDO Fatt.n. 000002-2018-FE  del 15/01/2018 RIFERIMENTO PREVENTIVO N.112/2017 DEL 28/12/2017 SU FIAT PANDA TG BE 180 ZH;08-02-2018;6070;5;512;1;Spese correnti;3;Acquisto di beni e servizi;2;Acquisto di servizi;9;Manutenzione ordinaria e riparazioni;1;"Manutenzione ordinaria e riparazioni di mezzi di trasporto ad uso civile, di sicurezza e ordine pubblico";08-02-2018;
189;1;216;"1.485,28";"1.485,28";SCAFIDI GIUSEPPE;ZCB17E106E;SALDO Fatt.n. 000001-2018-FE  del 05/01/2018 RIFERIMENTO PREVENTIVO N.113/2017 DEL 28/12/2017 SU BOBKAT TG AAD147;08-02-2018;6070;4;511;1;Spese correnti;3;Acquisto di beni e servizi;2;Acquisto di servizi;9;Manutenzione ordinaria e riparazioni;1;"Manutenzione ordinaria e riparazioni di mezzi di trasporto ad uso civile, di sicurezza e ordine pubblico";08-02-2018;
190;1;217;"2.750,00";"2.750,00";CTS CENTRO TEATRALE SICILIANO;Z1C214183A;SALDO Fatt.n. FATTPA 2_18  del 17/01/2018 spettacolo tholos festival g.23/12/2017;08-02-2018;1477;0;442;1;Spese correnti;10;Altre spese correnti;99;Altre spese correnti n.a.c.;99;Altre spese correnti n.a.c.;999;Altre spese correnti n.a.c.;08-02-2018;
191;1;218;"5.000,00";"5.000,00";RAIMONDO CARMELO;Z29212DF0A;SALDO Fatt.n. FATTPA 2_18  del 17/01/2018 installazione luminarie artistiche festivita' natalizie 2017;08-02-2018;1520;1;412;1;Spese correnti;3;Acquisto di beni e servizi;2;Acquisto di servizi;2;"Organizzazione eventi, pubblicita` e servizi per trasferta";5;Organizzazione e partecipazione a manifestazioni e convegni;08-02-2018;
192;1;219;"646,62";"646,62";CARTAREGIA COSIMO;ZD92184FAE;SALDO Fatt.n. 6/PA  del 18/01/2018 Rif. Determina prot. 110  del 28/12/2017-manutenz. imp.illuminazione convento carmelitani;08-02-2018;4035;0;528;2;Spese in conto capitale;2;Investimenti fissi lordi e acquisto di terreni;1;Beni materiali;9;Beni immobili;13;Altre vie di comunicazione;08-02-2018;
193;1;220;"500,91";"500,91";Wind Tre S.p.A.; ;ACCONTO Fatt.n. 2017E000011029  del 19/12/2017 canoni 01/09-31/10/2017-periodo 01/07-31/08/17;08-02-2018;6040;5;426;1;Spese correnti;3;Acquisto di beni e servizi;2;Acquisto di servizi;5;Utenze e canoni;1;Telefonia fissa;08-02-2018;
194;1;221;"267,32";"267,32";Wind Tre S.p.A.; ;ACCONTO Fatt.n. 2017E000011029  del 19/12/2017 canoni 01/09-31/10/2017-periodo 01/07-31/08/17;08-02-2018;6040;6;427;1;Spese correnti;3;Acquisto di beni e servizi;2;Acquisto di servizi;5;Utenze e canoni;1;Telefonia fissa;08-02-2018;
195;1;222;"594,00";"594,00";Wind Tre S.p.A.; ;ACCONTO Fatt.n. 2017E000011029  del 19/12/2017 canoni 01/09-31/10/2017-periodo 01/07-31/08/17;08-02-2018;6040;9;428;1;Spese correnti;3;Acquisto di beni e servizi;2;Acquisto di servizi;5;Utenze e canoni;1;Telefonia fissa;08-02-2018;
196;1;223;"140,96";"140,96";Wind Tre S.p.A.; ;ACCONTO Fatt.n. 2017E000011029  del 19/12/2017 canoni 01/09-31/10/2017-periodo 01/07-31/08/17;08-02-2018;6040;5;390;1;Spese correnti;3;Acquisto di beni e servizi;2;Acquisto di servizi;5;Utenze e canoni;1;Telefonia fissa;08-02-2018;
197;1;224;"358,81";"358,81";Wind Tre S.p.A.; ;SALDO Fatt.n. 2017E000011029  del 19/12/2017 canoni 01/09-31/10/2017-periodo 01/07-31/08/17;08-02-2018;6040;10;429;1;Spese correnti;3;Acquisto di beni e servizi;2;Acquisto di servizi;5;Utenze e canoni;1;Telefonia fissa;08-02-2018;
198;1;225;"205,49";"205,49";CARTAREGIA COSIMO;Z902180AFB;ACCONTO Fatt.n. 7/PA  del 18/01/2018 Rif. Determina prot. 111  del 27/12/2017-lavori manutenz. imp. illuminazione campo di calcio;08-02-2018;1829;0;524;1;Spese correnti;3;Acquisto di beni e servizi;1;Acquisto di beni;2;Altri beni di consumo;999;Altri beni e materiali di consumo n.a.c.;08-02-2018;
199;1;226;"123,37";"123,37";CARTAREGIA COSIMO;Z902180AFB;SALDO Fatt.n. 7/PA  del 18/01/2018 Rif. Determina prot. 111  del 27/12/2017-lavori manutenz. imp. illuminazione campo di calcio;08-02-2018;4035;0;525;2;Spese in conto capitale;2;Investimenti fissi lordi e acquisto di terreni;1;Beni materiali;9;Beni immobili;13;Altre vie di comunicazione;08-02-2018;
200;1;227;"515,08";"515,08";VOLLEY & SPORT;Z0121647A9;SALDO Fatt.n. 16 FP  del 18/01/2018 KIT ORIENTEE RING;08-02-2018;1477;0;493;1;Spese correnti;10;Altre spese correnti;99;Altre spese correnti n.a.c.;99;Altre spese correnti n.a.c.;999;Altre spese correnti n.a.c.;08-02-2018;
201;1;228;"1.751,05";"1.751,05";Wind Tre S.p.A.; ;SALDO Fatt.n. 2018E000000943  del 20/01/2018 Fatturazione 01/01-28/02/2018;08-02-2018;6040;5;390;1;Spese correnti;3;Acquisto di beni e servizi;2;Acquisto di servizi;5;Utenze e canoni;1;Telefonia fissa;08-02-2018;
202;1;229;"300,00";"300,00";TRICOLI DANIELE; ;CONTRIBUTI MANIFESTAZIONI PROGRAMMA ESTATE 2017 FESTA C/DA BOSCHITTO;08-02-2018;2000;7;559;1;Spese correnti;4;Trasferimenti correnti;4;Trasferimenti correnti a Istituzioni Sociali Private;1;Trasferimenti correnti a Istituzioni Sociali Private;1;Trasferimenti correnti a Istituzioni Sociali Private;08-02-2018;
203;1;230;"41,48";"1.078,48";TERMINI GIUSEPPE;ZEB1FC7E7C;SALDO Fatt.n. FATTPA 11_17  del 13/11/2017 C.T. REDAZIONE SCIA CASA DI RIPOSO VILLA MARIA';08-02-2018;2220;0;270;2;Spese in conto capitale;2;Investimenti fissi lordi e acquisto di terreni;3;Beni immateriali;5;Incarichi professionali per la realizzazione di investimenti;1;Incarichi professionali per la realizzazione di investimenti;08-02-2018;
203;2;230;"1.037,00";"1.078,48";TERMINI GIUSEPPE;ZEB1FC7E7C;ACCONTO Fatt.n. FATTPA 11_17  del 13/11/2017 C.T. REDAZIONE SCIA CASA DI RIPOSO VILLA MARIA';08-02-2018;2220;0;270;2;Spese in conto capitale;2;Investimenti fissi lordi e acquisto di terreni;3;Beni immateriali;5;Incarichi professionali per la realizzazione di investimenti;1;Incarichi professionali per la realizzazione di investimenti;08-02-2018;
204;1;232;"204,55";"204,55";ANAC AUTORITA' NAZIONALE ANTICORRUZIONE;553987624C;LAVORI MANUTENZ. STRAORD. COPERTURA E REALIZZ. FOTOVOLTAICO IST. COMPRENSIVO-SPESE PUBBLICITA';08-02-2018;4036;0;560;2;Spese in conto capitale;2;Investimenti fissi lordi e acquisto di terreni;1;Beni materiali;9;Beni immobili;3;Fabbricati ad uso scolastico;09-02-2018;
205;1;233;"20,45";"20,45";ANAC AUTORITA' NAZIONALE ANTICORRUZIONE;553987624C;MANUTENZ. STRAORD. COPERTURE E INSTALL. IMP. FOTOVOLTAICO IST. COMPRENSIVO-SPESE PUBBL.;08-02-2018;4036;1;471;2;Spese in conto capitale;2;Investimenti fissi lordi e acquisto di terreni;1;Beni materiali;9;Beni immobili;3;Fabbricati ad uso scolastico;09-02-2018;
206;1;234;"809,00";"809,00";GAS NATURALVENDITA ITALIA SPA; ;ACCONTO Fatt.n. FI18366000001423  del 25/01/2018 fatturazione periodo 06/12/2017-24/01/2018;08-02-2018;6160;3;433;1;Spese correnti;3;Acquisto di beni e servizi;2;Acquisto di servizi;5;Utenze e canoni;6;Gas;09-02-2018;
207;1;235;"701,91";"701,91";GAS NATURALVENDITA ITALIA SPA; ;SALDO Fatt.n. FI18366000001423  del 25/01/2018 fatturazione periodo 06/12/2017-24/01/2018;08-02-2018;6160;3;397;1;Spese correnti;3;Acquisto di beni e servizi;2;Acquisto di servizi;5;Utenze e canoni;6;Gas;09-02-2018;
208;1;0;"454,48";"454,48";"Libreria Mosca sas di Mosca Antonio &amp; C."; ;SALDO Fatt.n. 5  del 20/01/2018 BUONI LIBRO A.S.2017/18;20-02-2018;2000;10;450;1;Spese correnti;3;Acquisto di beni e servizi;2;Acquisto di servizi;99;Altri servizi;999;Altri servizi diversi n.a.c.;20-02-2018;
209;1;0;"521,72";"521,72";SIAE; ;SALDO Fatt.n. 1618002498  del 18/01/2018 SIAE SPETTACOLI;20-02-2018;1477;0;418;1;Spese correnti;10;Altre spese correnti;99;Altre spese correnti n.a.c.;99;Altre spese correnti n.a.c.;999;Altre spese correnti n.a.c.;20-02-2018;
210;1;0;"3.651,19";"3.651,19";ZS INFORMATICA S.R.L.;Z082146146;SALDO Fatt.n. 240  del 22/12/2017 materiale per centro anziani;20-02-2018;1480;0;513;1;Spese correnti;3;Acquisto di beni e servizi;1;Acquisto di beni;2;Altri beni di consumo;999;Altri beni e materiali di consumo n.a.c.;20-02-2018;
211;1;0;"1.969,81";"1.969,81";RICCIARDO TONINO MAURO; ;"SALDO Fatt.n. 02/2018 F.E.P.A.  del 22/01/2018 Lanzillotti Giuseppe e Pascale Adriano, processi penali riuniti n. 284/07 e 41/08, Tribunale Patti e Corte di Appello Messina.";20-02-2018;1058;0;522;1;Spese correnti;3;Acquisto di beni e servizi;2;Acquisto di servizi;99;Altri servizi;2;Altre spese legali;20-02-2018;
212;1;0;"1.188,01";"1.188,01";LA TECNICA DI MONDELLO SANTI;Z4C1CCAAAD;Fatt.n. FATTPA 1_18 del 17/01/2018 manutenz. imp. depurazione Arabite 01/07-30/12/2017;20-02-2018;1577;1;487;1;Spese correnti;3;Acquisto di beni e servizi;2;Acquisto di servizi;9;Manutenzione ordinaria e riparazioni;11;Manutenzione ordinaria e riparazioni di altri beni materiali;20-02-2018;
213;1;0;"1.994,27";"1.994,27";LA TECNICA DI MONDELLO SANTI;Z4C1CCAAAD;Fatt.n. FATTPA 1_18 del 17/01/2018 manutenz. imp. depurazione Arabite 01/07-30/12/2017;20-02-2018;1577;1;526;1;Spese correnti;3;Acquisto di beni e servizi;2;Acquisto di servizi;9;Manutenzione ordinaria e riparazioni;11;Manutenzione ordinaria e riparazioni di altri beni materiali;20-02-2018;
214;1;0;"3.629,71";"3.629,71";LA TECNICA DI MONDELLO SANTI;Z4C1CCAAAD;Fatt.n. FATTPA 1_18 del 17/01/2018 manutenz. imp. depurazione Arabite 01/07-30/12/2017;20-02-2018;4035;0;527;2;Spese in conto capitale;2;Investimenti fissi lordi e acquisto di terreni;1;Beni materiali;9;Beni immobili;13;Altre vie di comunicazione;20-02-2018;
215;1;0;"1.037,00";"1.037,00";LA TECNICA DI MONDELLO SANTI;Z4C1CCAAAD;Fatt.n. FATTPA 2_18 del 17/01/2018 LAVORI ESEGUITI ALL'IMPIANTO DI DEPURAZIONE ARABITE;20-02-2018;4035;0;527;2;Spese in conto capitale;2;Investimenti fissi lordi e acquisto di terreni;1;Beni materiali;9;Beni immobili;13;Altre vie di comunicazione;20-02-2018;
216;1;0;"3.660,00";"3.660,00";PARAVIA ELEVATORS SERVICE SRL;Z401FBF43B;SALDO Fatt.n. 2018S100004  del 22/01/2018 manutenzione ascensore casa di riposo villa maria';20-02-2018;1025;0;264;1;Spese correnti;3;Acquisto di beni e servizi;2;Acquisto di servizi;9;Manutenzione ordinaria e riparazioni;8;Manutenzione ordinaria e riparazioni di beni immobili;20-02-2018;
217;1;0;"793,00";"793,00";HALLEY CONSULTING;ZFA209E05D;SALDO Fatt.n. 20171670  del 28/12/2017 INTERVETI SOFTWARE IN TELEASSISTENZA G.22/11/2017;20-02-2018;1686;0;364;1;Spese correnti;3;Acquisto di beni e servizi;2;Acquisto di servizi;99;Altri servizi;999;Altri servizi diversi n.a.c.;20-02-2018;
218;1;0;"7.257,87";"7.257,87";COOP. SOCIALE ORCHIDEA;Z432014AD5;SALDO Fatt.n. 1 E  del 31/01/2018 PREPARAZIONE PASTI MENSA SCOLASTICA GENNAIO 2018;20-02-2018;2000;8;398;1;Spese correnti;3;Acquisto di beni e servizi;2;Acquisto di servizi;15;Contratti di servizio pubblico;6;Contratti di servizio per le mense scolastiche;20-02-2018;
219;1;0;"2.885,30";"2.885,30";HALLEY CONSULTING;ZE91C8D94E;SALDO Fatt.n. 20180091  del 03/01/2018 CANONE ASS.ZA SOFTWARE 01/10-31/12/2017;20-02-2018;2100;2;347;1;Spese correnti;3;Acquisto di beni e servizi;2;Acquisto di servizi;19;Servizi informatici e di telecomunicazioni;5;Servizi per i sistemi e relativa manutenzione;20-02-2018;
220;1;0;"1.899,67";"1.899,67";BIGA S.R.L.;Z06213F6D8;SALDO Fatt.n. 0000020  del 31/01/2018 sedie e banchi per scuole;20-02-2018;1477;0;514;1;Spese correnti;10;Altre spese correnti;99;Altre spese correnti n.a.c.;99;Altre spese correnti n.a.c.;999;Altre spese correnti n.a.c.;20-02-2018;
221;1;0;"712,47";"712,47";GIARDINA VIAGGI SRL;ZBA1FE4AD8;SALDO Fatt.n. 23E  del 25/01/2018 trasporto studenti dic.2017;20-02-2018;2000;9;280;1;Spese correnti;3;Acquisto di beni e servizi;2;Acquisto di servizi;15;Contratti di servizio pubblico;2;Contratti di servizio di trasporto scolastico;20-02-2018;
222;1;0;"880,11";"880,11";GIARDINA VIAGGI SRL;ZBA1FE4AD8;SALDO Fatt.n. 33E  del 06/02/2018 TRASPORTO STUDENTI GEN.2018;20-02-2018;2000;9;280;1;Spese correnti;3;Acquisto di beni e servizi;2;Acquisto di servizi;15;Contratti di servizio pubblico;2;Contratti di servizio di trasporto scolastico;20-02-2018;
223;1;0;"-0,01";"6.424,60";AZIENDA SICILIANA TRASPORTI;ZA81FE51C2;SALDO Fatt.n. 25/S4  del 05/02/2018 TRASPORTO STUDENTI GEN.2018;20-02-2018;2000;9;279;1;Spese correnti;3;Acquisto di beni e servizi;2;Acquisto di servizi;15;Contratti di servizio pubblico;2;Contratti di servizio di trasporto scolastico;20-02-2018;
223;2;0;"6.424,61";"6.424,60";AZIENDA SICILIANA TRASPORTI;ZA81FE51C2;SALDO Fatt.n. 25/S4  del 05/02/2018 TRASPORTO STUDENTI GEN.2018;20-02-2018;2000;9;279;1;Spese correnti;3;Acquisto di beni e servizi;2;Acquisto di servizi;15;Contratti di servizio pubblico;2;Contratti di servizio di trasporto scolastico;20-02-2018;
227;1;0;"556,52";"556,52";CARTAREGIA COSIMO;Z571F8C9B3;ACCONTO Fatt.n. 8/PA  del 26/01/2018 Rif. Determina prot. 125  del 01/08/2017-MANUTENZ. IMP. PUBBLICA ILL.NE DIC.2017;20-02-2018;3930;1;211;1;Spese correnti;3;Acquisto di beni e servizi;2;Acquisto di servizi;15;Contratti di servizio pubblico;999;Altre spese per contratti di servizio pubblico;20-02-2018;
228;1;0;"594,95";"594,95";CARTAREGIA COSIMO;Z571F8C9B3;SALDO Fatt.n. 8/PA  del 26/01/2018 Rif. Determina prot. 125  del 01/08/2017-MANUTENZ. IMP. PUBBLICA ILL.NE DIC.2017;20-02-2018;4035;0;533;2;Spese in conto capitale;2;Investimenti fissi lordi e acquisto di terreni;1;Beni materiali;9;Beni immobili;13;Altre vie di comunicazione;20-02-2018;
229;1;0;"700,00";"700,00";GIAMBRA PIERANGELO;ZEA21741BB;SALDO Fatt.n. 8/A  del 25/01/2018 materiale pubblicitario;20-02-2018;1477;0;519;1;Spese correnti;10;Altre spese correnti;99;Altre spese correnti n.a.c.;99;Altre spese correnti n.a.c.;999;Altre spese correnti n.a.c.;20-02-2018;
230;1;0;"814,98";"814,98";ENEL ENERGIA SPA; ;SALDO Fatt.n. 004810257823  del 07/02/2018 FATT. GEN.2018;20-02-2018;6030;5;459;1;Spese correnti;3;Acquisto di beni e servizi;2;Acquisto di servizi;5;Utenze e canoni;4;Energia elettrica;20-02-2018;
231;1;0;"317,86";"7.193,22";ENEL ENERGIA SPA; ;SALDO Fatt.n. 004810257822  del 07/02/2018 FATT. GEN.2018;20-02-2018;6030;12;466;1;Spese correnti;3;Acquisto di beni e servizi;2;Acquisto di servizi;5;Utenze e canoni;4;Energia elettrica;20-02-2018;
231;2;0;"6.875,36";"7.193,22";ENEL ENERGIA SPA; ;SALDO Fatt.n. 004810269454  del 10/02/2018 FATT. GEN.2018;20-02-2018;6030;12;466;1;Spese correnti;3;Acquisto di beni e servizi;2;Acquisto di servizi;5;Utenze e canoni;4;Energia elettrica;20-02-2018;
232;1;0;"27,70";"28,73";AUTOSTRADE PER L'ITALIA S.p.A.;0;ACCONTO Fatt.n. 900001337D  del 30/01/2018 PEDAGGI AUTOSTRADALI GEN.2018;20-02-2018;1017;0;28;1;Spese correnti;3;Acquisto di beni e servizi;2;Acquisto di servizi;99;Altri servizi;999;Altri servizi diversi n.a.c.;20-02-2018;
232;2;0;"1,03";"28,73";TELEPASS SPA; ;ACCONTO Fatt.n. 900001291T  del 30/01/2018 TELEPASS GEN.2018;20-02-2018;1017;0;28;1;Spese correnti;3;Acquisto di beni e servizi;2;Acquisto di servizi;99;Altri servizi;999;Altri servizi diversi n.a.c.;20-02-2018;
233;1;0;"6,10";"6,33";AUTOSTRADE PER L'ITALIA S.p.A.; ;SALDO Fatt.n. 900001337D  del 30/01/2018 PEDAGGI AUTOSTRADALI GEN.2018;20-02-2018;1017;0;28;1;Spese correnti;3;Acquisto di beni e servizi;2;Acquisto di servizi;99;Altri servizi;999;Altri servizi diversi n.a.c.;20-02-2018;
233;2;0;"0,23";"6,33";TELEPASS SPA;0;SALDO Fatt.n. 900001291T  del 30/01/2018 TELEPASS GEN.2018;20-02-2018;1017;0;28;1;Spese correnti;3;Acquisto di beni e servizi;2;Acquisto di servizi;99;Altri servizi;999;Altri servizi diversi n.a.c.;20-02-2018;
279;1;0;"919,92";"919,92";SIAE; ;SALDO Fatt.n. 1618002500  del 18/01/2018 SIAE SPETTACOLI;20-02-2018;1520;1;414;1;Spese correnti;3;Acquisto di beni e servizi;2;Acquisto di servizi;2;"Organizzazione eventi, pubblicita` e servizi per trasferta";5;Organizzazione e partecipazione a manifestazioni e convegni;20-02-2018;
280;1;0;"853,38";"853,38";SCAFIDI VINCENZO;z442186d22;SALDO Fatt.n. FATTPA 2_18  del 20/01/2018 MANUTENZIONE FABBRICATI VARI;20-02-2018;4035;0;529;2;Spese in conto capitale;2;Investimenti fissi lordi e acquisto di terreni;1;Beni materiali;9;Beni immobili;13;Altre vie di comunicazione;20-02-2018;
281;1;0;"1.554,28";"1.554,28";SUDIMPIANTI DI ARDIRI FILIPPO;Z3E20D35AF;SALDO Fatt.n. FATTPA 5_18  del 26/01/2018 LAVORI IMP. RISCALDAMENTO EDIFICI COMUNALI;20-02-2018;4035;0;382;2;Spese in conto capitale;2;Investimenti fissi lordi e acquisto di terreni;1;Beni materiali;9;Beni immobili;13;Altre vie di comunicazione;20-02-2018;
284;1;339;"4.103,38";"4.103,38";SCAFIDI VINCENZO;Z4A2026A09;SALDO Fatt.n. FATTPA 1_18  del 19/01/2018 REALIZZAZIONE PANCHINE IN FERRO VIA N.DANTE;21-02-2018;5087;1;306;2;Spese in conto capitale;2;Investimenti fissi lordi e acquisto di terreni;1;Beni materiali;9;Beni immobili;13;Altre vie di comunicazione;22-02-2018;
285;1;340;"4.344,58";"4.344,58";I.S.G. COSTRUZIONI S.R.L.;ZCF2141678;SALDO Fatt.n. 1 / FE  del 01/02/2018 REALIZZAZIONE PLATEA CIMITERO COMUNALE;21-02-2018;4035;0;443;2;Spese in conto capitale;2;Investimenti fissi lordi e acquisto di terreni;1;Beni materiali;9;Beni immobili;13;Altre vie di comunicazione;22-02-2018;
288;1;343;"1.500,00";"1.500,00";GENOVESE VENERA SEBASTIANA;ZD61C1F539;SALDO Fatt.n. 3 / FE  del 29/01/2018 CONSULENZA HACCP ASILO NIDO ANNO 2017;26-02-2018;1776;1;197;1;Spese correnti;3;Acquisto di beni e servizi;1;Acquisto di beni;2;Altri beni di consumo;999;Altri beni e materiali di consumo n.a.c.;26-02-2018;
289;1;448;"1.260,94";"7.603,04";AQUILIA ADELINA; ;fornitura gratuita o semigratuita libri di testo a.s.2015/2016;27-02-2018;1425;0;32;1;Spese correnti;4;Trasferimenti correnti;2;Trasferimenti correnti a Famiglie;1;Interventi previdenziali;999;Altri sussidi e assegni;15-03-2018;
289;2;449;"650,00";"7.603,04";BISIGNANO STEFANIA; ;fornitura gratuita o semigratuita libri di testo a.s.2015/2016;27-02-2018;1425;0;32;1;Spese correnti;4;Trasferimenti correnti;2;Trasferimenti correnti a Famiglie;1;Interventi previdenziali;999;Altri sussidi e assegni;15-03-2018;
289;3;554;"650,00";"7.603,04";DAMIANO FILOMENA; ;fornitura gratuita o semigratuita libri di testo a.s.2015/2016;27-02-2018;1425;0;32;1;Spese correnti;4;Trasferimenti correnti;2;Trasferimenti correnti a Famiglie;1;Interventi previdenziali;999;Altri sussidi e assegni;22-03-2018;
289;4;450;"300,00";"7.603,04";MARCHELLO CARMELITA CINZIA; ;fornitura gratuita o semigratuita libri di testo a.s.2015/2016;27-02-2018;1425;0;32;1;Spese correnti;4;Trasferimenti correnti;2;Trasferimenti correnti a Famiglie;1;Interventi previdenziali;999;Altri sussidi e assegni;15-03-2018;
289;5;451;"950,00";"7.603,04";MUSARRA FRANNANNO PATRIZIA; ;fornitura gratuita o semigratuita libri di testo a.s.2015/2016;27-02-2018;1425;0;32;1;Spese correnti;4;Trasferimenti correnti;2;Trasferimenti correnti a Famiglie;1;Interventi previdenziali;999;Altri sussidi e assegni;15-03-2018;
289;6;452;"950,00";"7.603,04";PORTARO CONCETTA; ;fornitura gratuita o semigratuita libri di testo a.s.2015/2016;27-02-2018;1425;0;32;1;Spese correnti;4;Trasferimenti correnti;2;Trasferimenti correnti a Famiglie;1;Interventi previdenziali;999;Altri sussidi e assegni;15-03-2018;
289;7;453;"650,00";"7.603,04";PRESTIPINO ROSANNA; ;fornitura gratuita o semigratuita libri di testo a.s.2015/2016;27-02-2018;1425;0;32;1;Spese correnti;4;Trasferimenti correnti;2;Trasferimenti correnti a Famiglie;1;Interventi previdenziali;999;Altri sussidi e assegni;15-03-2018;
289;8;454;"300,00";"7.603,04";PRINCIOTTA MARIA VINCENZA; ;fornitura gratuita o semigratuita libri di testo a.s.2015/2016;27-02-2018;1425;0;32;1;Spese correnti;4;Trasferimenti correnti;2;Trasferimenti correnti a Famiglie;1;Interventi previdenziali;999;Altri sussidi e assegni;15-03-2018;
289;9;455;"650,00";"7.603,04";SCAFFIDI DOMENICA; ;fornitura gratuita o semigratuita libri di testo a.s.2015/2016;27-02-2018;1425;0;32;1;Spese correnti;4;Trasferimenti correnti;2;Trasferimenti correnti a Famiglie;1;Interventi previdenziali;999;Altri sussidi e assegni;15-03-2018;
289;10;456;"650,00";"7.603,04";SCAFFIDI MARISA; ;fornitura gratuita o semigratuita libri di testo a.s.2015/2016;27-02-2018;1425;0;32;1;Spese correnti;4;Trasferimenti correnti;2;Trasferimenti correnti a Famiglie;1;Interventi previdenziali;999;Altri sussidi e assegni;15-03-2018;
289;11;457;"592,10";"7.603,04";VENTIMIGLIA DORIS; ;fornitura gratuita o semigratuita libri di testo a.s.2015/2016;27-02-2018;1425;0;32;1;Spese correnti;4;Trasferimenti correnti;2;Trasferimenti correnti a Famiglie;1;Interventi previdenziali;999;Altri sussidi e assegni;15-03-2018;
293;1;409;"1.518,37";"1.833,71";FIORE SALVATORE VITTORIO; ;INDENNITA' FUNZIONE MESE DI FEBBRAIO 2018;01-03-2018;1001;0;18;1;Spese correnti;3;Acquisto di beni e servizi;2;Acquisto di servizi;1;Organi e incarichi istituzionali dell'amministrazione;1;Organi istituzionali dell'amministrazione - Indennità;05-03-2018;
293;2;410;"151,83";"1.833,71";INTERDONATO ARMANDO; ;INDENNITA' FUNZIONE MESE DI FEBBRAIO 2018;01-03-2018;1001;0;18;1;Spese correnti;3;Acquisto di beni e servizi;2;Acquisto di servizi;1;Organi e incarichi istituzionali dell'amministrazione;1;Organi istituzionali dell'amministrazione - Indennità;05-03-2018;
293;3;411;"163,51";"1.833,71";PETTINATO  ROSA SANDRA; ;INDENNITA' FUNZIONE MESE DI FEBBRAIO 2018 E CONGUAGLIO DAL 24/10/17 AL 21/12/17 E DAL 10/01/18 AL 19/01/18 E DAL 24/01 AL 02/02/18;01-03-2018;1001;0;18;1;Spese correnti;3;Acquisto di beni e servizi;2;Acquisto di servizi;1;Organi e incarichi istituzionali dell'amministrazione;1;Organi istituzionali dell'amministrazione - Indennità;05-03-2018;
296;1;412;"157,40";"157,40";ECONOMO COMUNALE; ;RIMBORSO SPESE ECONOMATO PER REALIZZAZIONE MANIFESTAZIONI CARNEVALE NNO 2018;02-03-2018;2000;1;13;1;Spese correnti;3;Acquisto di beni e servizi;2;Acquisto di servizi;2;"Organizzazione eventi, pubblicita` e servizi per trasferta";5;Organizzazione e partecipazione a manifestazioni e convegni;05-03-2018;
298;1;414;"2.000,00";"2.000,00";A.S.D. NEW SICILIA PROMOTION; ;MANIFESTAZIONI NATALIZIE 2017-BABBO NATALE INCONTRA I BAMBINI;02-03-2018;1843;0;476;1;Spese correnti;4;Trasferimenti correnti;4;Trasferimenti correnti a Istituzioni Sociali Private;1;Trasferimenti correnti a Istituzioni Sociali Private;1;Trasferimenti correnti a Istituzioni Sociali Private;05-03-2018;
299;1;442;"407,48";"407,48";CIRCOLO CASINO DI COMPAGNIA; ;RIMBORSO SPESE ENERGIA ELETTRICA;02-03-2018;1505;1;271;1;Spese correnti;4;Trasferimenti correnti;3;Trasferimenti correnti a Imprese;99;Trasferimenti correnti a altre imprese;999;Trasferimenti correnti a altre imprese;14-03-2018;
300;1;0;"400,00";"400,00";ASSOCIAZIONE TESORO DEI NEBRODI; ;CONTRIBUTI MANIFESTAZIONI PROGRAMMA ESTATE 2017;02-03-2018;2000;7;561;1;Spese correnti;4;Trasferimenti correnti;4;Trasferimenti correnti a Istituzioni Sociali Private;1;Trasferimenti correnti a Istituzioni Sociali Private;1;Trasferimenti correnti a Istituzioni Sociali Private;02-03-2018;
301;1;415;"400,00";"400,00";AGESCI; ;CONTRIBUTI MANIFESTAZIONI PROGRAMMA ESTATE 2017-FESTA DEL VOLONTARIATO;02-03-2018;2000;7;556;1;Spese correnti;4;Trasferimenti correnti;4;Trasferimenti correnti a Istituzioni Sociali Private;1;Trasferimenti correnti a Istituzioni Sociali Private;1;Trasferimenti correnti a Istituzioni Sociali Private;05-03-2018;
303;1;416;"3.843,00";"3.843,00";BENFATTA SALVATORE & C. S.N.C.;ZC922CA0C;SALDO Fatt.n. 000001-2018-FATTURE  del 06/02/2018 RIPRISTINO COND.IDRICA-SOMMA URGENZA DEL 20/01/18;05-03-2018;1570;0;19;1;Spese correnti;3;Acquisto di beni e servizi;2;Acquisto di servizi;9;Manutenzione ordinaria e riparazioni;11;Manutenzione ordinaria e riparazioni di altri beni materiali;05-03-2018;
305;1;406;"8.651,71";"8.651,71";TESORIERE COMUNALE-CREDITO SICILIANO; ;INTERESSI MATURATI AL 31/12/2017 SU ANTICIPAZIONE DI TESORERIA ANNO 2017;06-03-2018;2161;0;320;1;Spese correnti;7;Interessi passivi;6;Altri interessi passivi;3;Interessi su conti della tesoreria dello Stato o di altre Amministrazioni pubbliche;999;Interessi ad altri soggetti su conti della tesoreria dello Stato o di altre Amministrazioni pubbliche;06-03-2018;
309;1;420;"18.917,78";"18.917,78";CAROLLO ANTONIO;4799429619;"SALDO Fatt.n. 02/17  del 14/09/2017 SALDO compensi per la Direzione dei lavori, misure e contabilit?? dei lavori di ""Prolungamento della via P. Profeta con la via Nino Dante"". (fattura acconto n. 02/14 del euro 7500,00)";08-03-2018;5087;0;477;2;Spese in conto capitale;2;Investimenti fissi lordi e acquisto di terreni;1;Beni materiali;9;Beni immobili;13;Altre vie di comunicazione;08-03-2018;
310;1;421;"703,09";"703,09";TELECOM ITALIA S.P.A.-TIM SPA;6343524999;SALDO Fatt.n. C12020181000128559  del 05/02/2018 RIF.TO C.T. S2/2017/000028 FATTURAZIONE A SALDO DEL LAVORO ESEGUITO IST. COMPRENSIVO;08-03-2018;1025;0;44;1;Spese correnti;3;Acquisto di beni e servizi;2;Acquisto di servizi;9;Manutenzione ordinaria e riparazioni;8;Manutenzione ordinaria e riparazioni di beni immobili;08-03-2018;
311;1;292;"1.580,77";"1.580,77";TESORIERE COMUNALE-CREDITO SICILIANO; ;SERVIZIO TESORERIA COMUNALE - COMMISSIONI SU BONIFICI  ANNO 2017;08-03-2018;1054;0;435;1;Spese correnti;3;Acquisto di beni e servizi;2;Acquisto di servizi;15;Contratti di servizio pubblico;999;Altre spese per contratti di servizio pubblico;08-03-2018;
312;1;292;"508,73";"508,73";TESORIERE COMUNALE-CREDITO SICILIANO; ;SERVIZIO TESORERIA COMUNALE  - SPESE SU BONIFICI ANNO 2017;08-03-2018;1054;0;389;1;Spese correnti;3;Acquisto di beni e servizi;2;Acquisto di servizi;15;Contratti di servizio pubblico;999;Altre spese per contratti di servizio pubblico;08-03-2018;
313;1;422;"18.449,34";"18.449,34";Eco.Geos S.r.l.;7258614DC0;SALDO Fatt.n. 4|2018  del 31/01/2018 servizio raccolta rifiuti gen.2018;08-03-2018;1744;0;435;1;Spese correnti;3;Acquisto di beni e servizi;2;Acquisto di servizi;15;Contratti di servizio pubblico;5;Contratti di servizio per il conferimento in discarica dei rifiuti;08-03-2018;
316;1;425;"1.016,21";"1.016,21";SCAFIDI GIUSEPPE;ZC417E0C95;SALDO Fatt.n. 000005-2018-FE  del 13/02/2018 RIFERIMENTO PREVENTIVO 110/2017 DEL 27/12/2017 SU MOTOAPE TG AB17766;12-03-2018;6070;4;404;1;Spese correnti;3;Acquisto di beni e servizi;2;Acquisto di servizi;9;Manutenzione ordinaria e riparazioni;1;"Manutenzione ordinaria e riparazioni di mezzi di trasporto ad uso civile, di sicurezza e ordine pubblico";12-03-2018;
317;1;426;"120,21";"281,18";SCAFIDI GIUSEPPE;ZCB17E106E;SALDO Fatt.n. 000004-2018-FE  del 05/02/2018 RIFERIMENTO PREVENTIVO N.116/2017 SU MOTOAPE TG AB12766;12-03-2018;6070;5;512;1;Spese correnti;3;Acquisto di beni e servizi;2;Acquisto di servizi;9;Manutenzione ordinaria e riparazioni;1;"Manutenzione ordinaria e riparazioni di mezzi di trasporto ad uso civile, di sicurezza e ordine pubblico";12-03-2018;
317;2;426;"160,97";"281,18";SCAFIDI GIUSEPPE;ZCB17E106E;SALDO Fatt.n. 000003-2018-FE  del 31/01/2018 RIFERIMENTO PREVENTIVO N.114/2017 SU SUZUKI TG CN 409JZ;12-03-2018;6070;5;512;1;Spese correnti;3;Acquisto di beni e servizi;2;Acquisto di servizi;9;Manutenzione ordinaria e riparazioni;1;"Manutenzione ordinaria e riparazioni di mezzi di trasporto ad uso civile, di sicurezza e ordine pubblico";12-03-2018;
318;1;444;"0,10";"391,55";TELECOM ITALIA S.P.A.-TIM SPA; ;Fatt.n. 8A00069497 del 06/02/2018 2BIM 2018;12-03-2018;6040;5;390;1;Spese correnti;3;Acquisto di beni e servizi;2;Acquisto di servizi;5;Utenze e canoni;1;Telefonia fissa;14-03-2018;
318;2;444;"0,74";"391,55";TELECOM ITALIA S.P.A.-TIM SPA; ;Fatt.n. 8V00050200 del 06/02/2018 2BIM 2018;12-03-2018;6040;5;390;1;Spese correnti;3;Acquisto di beni e servizi;2;Acquisto di servizi;5;Utenze e canoni;1;Telefonia fissa;14-03-2018;
318;3;444;"3,82";"391,55";TELECOM ITALIA S.P.A.-TIM SPA; ;Fatt.n. 8V00048524 del 06/02/2018 2BIM 2018;12-03-2018;6040;5;390;1;Spese correnti;3;Acquisto di beni e servizi;2;Acquisto di servizi;5;Utenze e canoni;1;Telefonia fissa;14-03-2018;
318;4;444;"8,17";"391,55";TELECOM ITALIA S.P.A.-TIM SPA; ;Fatt.n. 8V00050648 del 06/02/2018 2BIM 2018;12-03-2018;6040;5;390;1;Spese correnti;3;Acquisto di beni e servizi;2;Acquisto di servizi;5;Utenze e canoni;1;Telefonia fissa;14-03-2018;
318;5;444;"378,72";"391,55";TELECOM ITALIA S.P.A.-TIM SPA; ;Fatt.n. 4220918800000818 del 06/02/2018 2BIM 2018;12-03-2018;6040;5;390;1;Spese correnti;3;Acquisto di beni e servizi;2;Acquisto di servizi;5;Utenze e canoni;1;Telefonia fissa;14-03-2018;
319;1;445;"0,74";"102,00";TELECOM ITALIA S.P.A.-TIM SPA; ;Fatt.n. 8V00049892 del 06/02/2018 2BIM 2018;12-03-2018;6040;6;391;1;Spese correnti;3;Acquisto di beni e servizi;2;Acquisto di servizi;5;Utenze e canoni;1;Telefonia fissa;14-03-2018;
319;2;445;"101,26";"102,00";TELECOM ITALIA S.P.A.-TIM SPA; ;Fatt.n. 4220918800000900 del 06/02/2018 2BIM 2018;12-03-2018;6040;6;391;1;Spese correnti;3;Acquisto di beni e servizi;2;Acquisto di servizi;5;Utenze e canoni;1;Telefonia fissa;14-03-2018;
320;1;446;"22,00";"22,00";TELECOM ITALIA S.P.A.-TIM SPA; ;Fatt.n. 4220918800000818 del 06/02/2018 2BIM 2018;12-03-2018;6040;10;393;1;Spese correnti;3;Acquisto di beni e servizi;2;Acquisto di servizi;5;Utenze e canoni;1;Telefonia fissa;14-03-2018;
321;1;427;"495,05";"495,05";Cafarelli Libreria Capitolo18 di Teodoro;Z12212A8CC;SALDO Fatt.n. 000001-2018-PA  del 29/01/2018 Fornitura libri - C.I.G. Z12212A8CC;12-03-2018;1776;0;196;1;Spese correnti;3;Acquisto di beni e servizi;1;Acquisto di beni;2;Altri beni di consumo;1;"Carta, cancelleria e stampati";12-03-2018;
322;1;428;"2.077,19";"2.077,19";ROSSI GIOVANNI; ;SALDO Fatt.n. 7  del 09/02/2018 SALDO CAUSA PRINCIOTTA ROSANNA CON DETRAZIONE DEL 10% E DELLA FATTURA DI ACCONTO 8/2017;12-03-2018;1058;0;15;1;Spese correnti;3;Acquisto di beni e servizi;2;Acquisto di servizi;99;Altri servizi;2;Altre spese legali;12-03-2018;
323;1;429;"35,00";"35,00";KUWAIT PETROLEUM ITALIA S.P.A.; ;Fatt.n. PJ00114818 del 31/01/2018 CARBURANTE PER AUTOMEZZI COM.LI GEN.2018;12-03-2018;6080;1;22;1;Spese correnti;3;Acquisto di beni e servizi;1;Acquisto di beni;2;Altri beni di consumo;2;"Carburanti, combustibili e lubrificanti";12-03-2018;
324;1;430;"52,00";"52,00";KUWAIT PETROLEUM ITALIA S.P.A.;6516542493;Fatt.n. PJ00114818 del 31/01/2018 CARBURANTE PER AUTOMEZZI COM.LI GEN.2018;12-03-2018;6080;2;23;1;Spese correnti;3;Acquisto di beni e servizi;1;Acquisto di beni;2;Altri beni di consumo;2;"Carburanti, combustibili e lubrificanti";12-03-2018;
325;1;431;"824,00";"824,00";KUWAIT PETROLEUM ITALIA S.P.A.; ;Fatt.n. PJ00114818 del 31/01/2018 CARBURANTE PER AUTOMEZZI COM.LI GEN.2018;12-03-2018;6080;3;24;1;Spese correnti;3;Acquisto di beni e servizi;1;Acquisto di beni;2;Altri beni di consumo;2;"Carburanti, combustibili e lubrificanti";12-03-2018;
326;1;432;"237,00";"237,00";KUWAIT PETROLEUM ITALIA S.P.A.; ;Fatt.n. PJ00114818 del 31/01/2018 CARBURANTE PER AUTOMEZZI COM.LI GEN.2018;12-03-2018;6080;4;25;1;Spese correnti;3;Acquisto di beni e servizi;1;Acquisto di beni;2;Altri beni di consumo;2;"Carburanti, combustibili e lubrificanti";12-03-2018;
327;1;433;"619,00";"619,00";KUWAIT PETROLEUM ITALIA S.P.A.; ;Fatt.n. PJ00114818 del 31/01/2018 CARBURANTE PER AUTOMEZZI COM.LI GEN.2018;12-03-2018;6080;5;26;1;Spese correnti;3;Acquisto di beni e servizi;1;Acquisto di beni;2;Altri beni di consumo;2;"Carburanti, combustibili e lubrificanti";12-03-2018;
328;1;434;"40,00";"40,00";KUWAIT PETROLEUM ITALIA S.P.A.; ;Fatt.n. PJ00114818 del 31/01/2018 CARBURANTE PER AUTOMEZZI COM.LI GEN.2018;12-03-2018;6080;7;27;1;Spese correnti;3;Acquisto di beni e servizi;1;Acquisto di beni;2;Altri beni di consumo;2;"Carburanti, combustibili e lubrificanti";12-03-2018;
329;1;435;"83,93";"83,93";AUTOLINEE MAGISTRO SRL;Z9D1FE4BDA;SALDO Fatt.n. FATTPA 10_18  del 13/02/2018 trasporto studenti gen.2018;12-03-2018;2000;9;282;1;Spese correnti;3;Acquisto di beni e servizi;2;Acquisto di servizi;15;Contratti di servizio pubblico;2;Contratti di servizio di trasporto scolastico;12-03-2018;
330;1;436;"636,05";"636,05";T.A.I. SRL;Z441FE4B65;SALDO Fatt.n. FATTPA 2_18  del 13/02/2018 trasporto studenti gen.2018;12-03-2018;2000;9;281;1;Spese correnti;3;Acquisto di beni e servizi;2;Acquisto di servizi;15;Contratti di servizio pubblico;2;Contratti di servizio di trasporto scolastico;12-03-2018;
331;1;437;"1,78";"4,01";AUTOMOBILE CLUB D'ITALIA; ;SALDO Fatt.n. 0000002996  del 18/01/2018 CONSULTAZIONE P.R.A. DIC.2017;12-03-2018;1272;0;148;1;Spese correnti;3;Acquisto di beni e servizi;2;Acquisto di servizi;99;Altri servizi;999;Altri servizi diversi n.a.c.;12-03-2018;
331;2;437;"2,23";"4,01";AUTOMOBILE CLUB D'ITALIA; ;SALDO Fatt.n. 0000002188  del 17/01/2018 consultazione pra nov.2017;12-03-2018;1272;0;148;1;Spese correnti;3;Acquisto di beni e servizi;2;Acquisto di servizi;99;Altri servizi;999;Altri servizi diversi n.a.c.;12-03-2018;
332;1;438;"1.488,94";"1.488,94";Wind Tre S.p.A.; ;SALDO Fatt.n. 2017E000011027  del 19/12/2017 canoni 01/07-31/08/2017 periodo 01/05-30/06/17;12-03-2018;6040;5;426;1;Spese correnti;3;Acquisto di beni e servizi;2;Acquisto di servizi;5;Utenze e canoni;1;Telefonia fissa;12-03-2018;
333;1;458;"610,00";"610,00";CARTAREGIA COSIMO;Z591CCA947;SALDO Fatt.n. 9/PA  del 16/02/2018 Rif. Determina  n.286 del 30/12/2016;12-03-2018;6120;0;494;1;Spese correnti;3;Acquisto di beni e servizi;2;Acquisto di servizi;9;Manutenzione ordinaria e riparazioni;8;Manutenzione ordinaria e riparazioni di beni immobili;15-03-2018;
334;1;439;"11.850,93";"11.850,93";CITTA'  METROPOLITANA DI MESSINA; ;RIVERSAMENTO TEFA  al 31/12/2017;12-03-2018;1752;1;269;1;Spese correnti;4;Trasferimenti correnti;1;Trasferimenti correnti a Amministrazioni Pubbliche;2;Trasferimenti correnti a Amministrazioni Locali;2;Trasferimenti correnti a Province;12-03-2018;
336;1;459;"656,02";"656,02";Xerox Spa;ZF21C92253;SALDO Fatt.n. 180001785 /G  del 01/02/2018 canone noleggio fotocopiatori;13-03-2018;2110;3;436;1;Spese correnti;3;Acquisto di beni e servizi;2;Acquisto di servizi;7;Utilizzo di beni di terzi;8;Noleggi di impianti e macchinari;15-03-2018;
338;1;460;"2.938,00";"2.938,00";LO PRESTI GIORGIO;ZA4225BBAA;SALDO Fatt.n. FATTPA 1_18  del 05/02/2018 lavori somma urgenza del 15/01/18 ripristino condotte fognarie;15-03-2018;1577;0;31;1;Spese correnti;3;Acquisto di beni e servizi;2;Acquisto di servizi;9;Manutenzione ordinaria e riparazioni;11;Manutenzione ordinaria e riparazioni di altri beni materiali;15-03-2018;
339;1;461;"2.132,82";"2.132,82";CARTAREGIA COSIMO;Z032181600;SALDO Fatt.n. 10/PA  del 21/02/2018 Rif. Determina prot. 04  dell'11/01/2018-manutenz. imp. pubbl. illuminazione gen.2018;15-03-2018;3930;1;586;1;Spese correnti;3;Acquisto di beni e servizi;2;Acquisto di servizi;15;Contratti di servizio pubblico;999;Altre spese per contratti di servizio pubblico;15-03-2018;
340;1;462;"6.937,80";"6.937,80";AZIENDA SICILIANA TRASPORTI;ZA81FE51C2;SALDO Fatt.n. 44/S4  del 21/02/2018 TRASPORTO STUDENTI GEN.2018;15-03-2018;2000;9;279;1;Spese correnti;3;Acquisto di beni e servizi;2;Acquisto di servizi;15;Contratti di servizio pubblico;2;Contratti di servizio di trasporto scolastico;15-03-2018;
341;1;463;"1.072,69";"1.072,69";ENEL ENERGIA SPA; ;SALDO Fatt.n. 004810444087  del 07/03/2018 FATT. FEB.2018;15-03-2018;6030;5;459;1;Spese correnti;3;Acquisto di beni e servizi;2;Acquisto di servizi;5;Utenze e canoni;4;Energia elettrica;15-03-2018;
342;1;464;"66,88";"403,14";ENEL ENERGIA SPA;0000000000;SALDO Fatt.n. 004810445603  del 07/03/2018 FATT. GEN./FEB.2018;15-03-2018;6030;12;466;1;Spese correnti;3;Acquisto di beni e servizi;2;Acquisto di servizi;5;Utenze e canoni;4;Energia elettrica;15-03-2018;
342;2;464;"336,26";"403,14";ENEL ENERGIA SPA; ;SALDO Fatt.n. 004810444086  del 07/03/2018 FATT. FEB. 2018;15-03-2018;6030;12;466;1;Spese correnti;3;Acquisto di beni e servizi;2;Acquisto di servizi;5;Utenze e canoni;4;Energia elettrica;15-03-2018;
343;1;465;"3.170,23";"3.170,23";IALITE ONLUS;ZA020E82FC;"SALDO Fatt.n. 8  del 02/02/2018 SERVIZIO DI ASSISTENZA DOMICILIARE IN FAVORE DI  ANZIANI,MINORI, DIVERSAMENTE ABILI E NUCLEI FAMILIARI IN CONDIZIONI DI         DISAGIO - DAL 15.01.2018 AL 31.01.2018 - CIG: ZA020E82FC";15-03-2018;1878;2;35;1;Spese correnti;3;Acquisto di beni e servizi;2;Acquisto di servizi;15;Contratti di servizio pubblico;9;Contratti di servizio di assistenza sociale domiciliare;15-03-2018;
344;1;466;"6.874,21";"6.874,21";COOP. SOCIALE ORCHIDEA;Z432014AD5;SALDO Fatt.n. 19 E  del 01/03/2018 PREPARAZIONE PASTI MENSA SCOLASTICA FEB.2018;15-03-2018;2000;8;398;1;Spese correnti;3;Acquisto di beni e servizi;2;Acquisto di servizi;15;Contratti di servizio pubblico;6;Contratti di servizio per le mense scolastiche;15-03-2018;
345;1;467;"800,00";"800,00";ASSOCIAZIONE FRATERNITA' MISERICORDIA; ;INTERVENTO SOSTEGNO SOGGETTI DIVERSAMENTE ABILI NELLE SCUOLE A.S.2017/2018-PERIODO:20/11-22/12/2017;15-03-2018;1775;0;456;1;Spese correnti;3;Acquisto di beni e servizi;2;Acquisto di servizi;15;Contratti di servizio pubblico;999;Altre spese per contratti di servizio pubblico;15-03-2018;
346;1;468;"1.100,00";"1.100,00";ASSOCIAZIONE FRATERNITA' MISERICORDIA; ;NTERVENTO SOSTEGNO SOGGETTI DIVERSAMENTE ABILI NELLE SCUOLE A.S.2017/2018-PERIODO:20/11-22/12/2017;15-03-2018;1775;1;457;1;Spese correnti;3;Acquisto di beni e servizi;2;Acquisto di servizi;15;Contratti di servizio pubblico;999;Altre spese per contratti di servizio pubblico;15-03-2018;
347;1;469;"500,00";"500,00";A.S.D. YOUNG PEOPLE POWER; ;CONTRIBUTI MANIFESTAZIONI PROGRAMMA ESTATE 2017;15-03-2018;2000;7;557;1;Spese correnti;4;Trasferimenti correnti;4;Trasferimenti correnti a Istituzioni Sociali Private;1;Trasferimenti correnti a Istituzioni Sociali Private;1;Trasferimenti correnti a Istituzioni Sociali Private;15-03-2018;
348;1;0;"400,00";"400,00";A.S.D. PETRA; ;CONTRIBUTI MANIFESTAZIONI PROGRAMMA ESTATE 2017;15-03-2018;2000;7;558;1;Spese correnti;4;Trasferimenti correnti;4;Trasferimenti correnti a Istituzioni Sociali Private;1;Trasferimenti correnti a Istituzioni Sociali Private;1;Trasferimenti correnti a Istituzioni Sociali Private;15-03-2018;
349;1;470;"166,00";"166,00";SOCIETA' OPERAIA DI M.S.; ;manifestazione carnescialesca anziani anno 2018;15-03-2018;1878;9;20;1;Spese correnti;3;Acquisto di beni e servizi;1;Acquisto di beni;2;Altri beni di consumo;999;Altri beni e materiali di consumo n.a.c.;15-03-2018;
350;1;471;"834,00";"834,00";SOCIETA' OPERAIA DI M.S.; ;manifestazione carnescialesca anziani anno 2018;15-03-2018;2000;7;21;1;Spese correnti;4;Trasferimenti correnti;4;Trasferimenti correnti a Istituzioni Sociali Private;1;Trasferimenti correnti a Istituzioni Sociali Private;1;Trasferimenti correnti a Istituzioni Sociali Private;15-03-2018;
351;1;472;"73,00";"73,00";PRO LOCO; ;CONTRIBUTI MANIFESTAZIONI PROGRAMMA ESTATE 2017;15-03-2018;2000;7;555;1;Spese correnti;4;Trasferimenti correnti;4;Trasferimenti correnti a Istituzioni Sociali Private;1;Trasferimenti correnti a Istituzioni Sociali Private;1;Trasferimenti correnti a Istituzioni Sociali Private;15-03-2018;
352;1;473;"427,00";"427,00";ASSOCIAZIONE INSIEME PER LA CITTA'; ;CONTRIBUTI MANIFESTAZIONI PROGRAMMA ESTATE 2017;15-03-2018;2000;7;555;1;Spese correnti;4;Trasferimenti correnti;4;Trasferimenti correnti a Istituzioni Sociali Private;1;Trasferimenti correnti a Istituzioni Sociali Private;1;Trasferimenti correnti a Istituzioni Sociali Private;15-03-2018;
353;1;474;"0,30";"3.564,00";SOCIETA' COOP.  NUOVI ORIZZONTI ARL;ZF61EOF9D7;SALDO Fatt.n. 10/P.A.  del 26/02/2018 INTERVENTI IN FAVORE DELLE PERSONE IN CONDIZIONE DI DISABILITA' GRAVISSIMA/2014;15-03-2018;1884;1;456;1;Spese correnti;4;Trasferimenti correnti;2;Trasferimenti correnti a Famiglie;1;Interventi previdenziali;999;Altri sussidi e assegni;15-03-2018;
353;2;474;"3.563,70";"3.564,00";SOCIETA' COOP.  NUOVI ORIZZONTI ARL;ZF61EOF9D7;ACCONTO Fatt.n. 10/P.A.  del 26/02/2018 INTERVENTI IN FAVORE DELLE PERSONE IN CONDIZIONE DI DISABILITA' GRAVISSIMA/2014;15-03-2018;1884;1;456;1;Spese correnti;4;Trasferimenti correnti;2;Trasferimenti correnti a Famiglie;1;Interventi previdenziali;999;Altri sussidi e assegni;15-03-2018;
354;1;517;"1.459,76";"1.459,76";CASSA PER I SERVIZI ENERGETICI E AMBIENTALI; ;S.I.I. -COMPONENTI TARIFFARIE UI1 ALLA CSEA;15-03-2018;1687;0;406;1;Spese correnti;4;Trasferimenti correnti;3;Trasferimenti correnti a Imprese;99;Trasferimenti correnti a altre imprese;999;Trasferimenti correnti a altre imprese;21-03-2018;
355;1;475;"5.791,58";"5.791,58";ENEL ENERGIA SPA; ;SALDO Fatt.n. 004810452509  del 11/03/2018 fatt. feb.2018;15-03-2018;6030;5;459;1;Spese correnti;3;Acquisto di beni e servizi;2;Acquisto di servizi;5;Utenze e canoni;4;Energia elettrica;15-03-2018;
358;1;512;"640,53";"640,53";GAS NATURALVENDITA ITALIA SPA; ;Fatt.n. FI18366000002398 del 26/02/2018 fatt. 17/11/2017-23/02/2018;16-03-2018;6160;0;394;1;Spese correnti;3;Acquisto di beni e servizi;2;Acquisto di servizi;5;Utenze e canoni;6;Gas;21-03-2018;
359;1;513;"504,90";"504,90";GAS NATURALVENDITA ITALIA SPA; ;Fatt.n. FI18366000002398 del 26/02/2018 fatt. 17/11/2017-23/02/2018;16-03-2018;6160;0;430;1;Spese correnti;3;Acquisto di beni e servizi;2;Acquisto di servizi;5;Utenze e canoni;6;Gas;21-03-2018;
360;1;514;"548,89";"548,89";GAS NATURALVENDITA ITALIA SPA; ;Fatt.n. FI18366000002397 del 26/02/2018 fatt. 23/12/2017-23/02/2018;16-03-2018;6160;1;395;1;Spese correnti;3;Acquisto di beni e servizi;2;Acquisto di servizi;5;Utenze e canoni;999;Utenze e canoni per altri servizi n.a.c.;21-03-2018;
361;1;515;"36,95";"36,95";GAS NATURALVENDITA ITALIA SPA; ;Fatt.n. FI18366000002461 del 26/02/2018 fatt. 23/12/2017-23/02/2018;16-03-2018;6160;2;396;1;Spese correnti;3;Acquisto di beni e servizi;2;Acquisto di servizi;5;Utenze e canoni;999;Utenze e canoni per altri servizi n.a.c.;21-03-2018;
362;1;516;"1.172,31";"1.172,31";GAS NATURALVENDITA ITALIA SPA; ;Fatt.n. FI18366000002330 del 26/02/2018 fatt. 05/01-23/02/2018;16-03-2018;6160;3;397;1;Spese correnti;3;Acquisto di beni e servizi;2;Acquisto di servizi;5;Utenze e canoni;6;Gas;21-03-2018;
365;1;403;"28,52";"48,14";AUTOSTRADE PER L'ITALIA S.p.A.;0;ACCONTO Fatt.n. 900003574D  del 28/02/2018 PEDAGGI AUTOSTRADALI FEB.2018;20-03-2018;1017;0;28;1;Spese correnti;3;Acquisto di beni e servizi;2;Acquisto di servizi;99;Altri servizi;999;Altri servizi diversi n.a.c.;21-03-2018;
365;2;403;"19,62";"48,14";TELEPASS SPA;0;ACCONTO Fatt.n. 900003751T  del 28/02/2018 TELEPASS FEB.2018;20-03-2018;1017;0;28;1;Spese correnti;3;Acquisto di beni e servizi;2;Acquisto di servizi;99;Altri servizi;999;Altri servizi diversi n.a.c.;21-03-2018;
366;1;518;"6,28";"6,51";AUTOSTRADE PER L'ITALIA S.p.A.; ;SALDO Fatt.n. 900003574D  del 28/02/2018 PEDAGGI AUTOSTRADALI FEB.2018;20-03-2018;1017;0;28;1;Spese correnti;3;Acquisto di beni e servizi;2;Acquisto di servizi;99;Altri servizi;999;Altri servizi diversi n.a.c.;21-03-2018;
366;2;519;"0,23";"6,51";TELEPASS SPA; ;SALDO Fatt.n. 900003751T  del 28/02/2018 TELEPASS FEB.2018;20-03-2018;1017;0;28;1;Spese correnti;3;Acquisto di beni e servizi;2;Acquisto di servizi;99;Altri servizi;999;Altri servizi diversi n.a.c.;21-03-2018;
442;1;557;"131,35";"131,35";ASMEL;Z432014AD5;ACCONTO Fatt.n. 049  del 11/01/2018 corrispettivo centrale di committenza asmecomm;26-03-2018;2000;8;401;1;Spese correnti;3;Acquisto di beni e servizi;2;Acquisto di servizi;15;Contratti di servizio pubblico;6;Contratti di servizio per le mense scolastiche;26-03-2018;
443;1;558;"28,90";"28,90";ASMEL;Z432014AD5;SALDO Fatt.n. 049  del 11/01/2018 corrispettivo centrale di committenza asmecomm;26-03-2018;2000;8;43;1;Spese correnti;3;Acquisto di beni e servizi;2;Acquisto di servizi;15;Contratti di servizio pubblico;6;Contratti di servizio per le mense scolastiche;26-03-2018;
444;1;559;"139,37";"139,37";SIAE; ;SALDO Fatt.n. 1618006576  del 21/02/2018 TRATTENIMENTO DAL VIVO BALLO;26-03-2018;1520;1;414;1;Spese correnti;3;Acquisto di beni e servizi;2;Acquisto di servizi;2;"Organizzazione eventi, pubblicita` e servizi per trasferta";5;Organizzazione e partecipazione a manifestazioni e convegni;26-03-2018;
445;1;560;"500,00";"500,00";SIAE; ;ACCONTO Fatt.n. 1618006341  del 20/02/2018 SFILATI CARRI CARNEVALE;26-03-2018;1512;1;14;1;Spese correnti;3;Acquisto di beni e servizi;2;Acquisto di servizi;2;"Organizzazione eventi, pubblicita` e servizi per trasferta";5;Organizzazione e partecipazione a manifestazioni e convegni;26-03-2018;
446;1;561;"21,72";"155,81";SIAE; ;SALDO Fatt.n. 1618006341  del 20/02/2018 SFILATI CARRI CARNEVALE;26-03-2018;2000;1;15;1;Spese correnti;3;Acquisto di beni e servizi;2;Acquisto di servizi;2;"Organizzazione eventi, pubblicita` e servizi per trasferta";5;Organizzazione e partecipazione a manifestazioni e convegni;26-03-2018;
446;2;561;"134,09";"155,81";SIAE; ;SALDO Fatt.n. 1618006342  del 20/02/2018 MUSICA IN ARTE;26-03-2018;2000;1;15;1;Spese correnti;3;Acquisto di beni e servizi;2;Acquisto di servizi;2;"Organizzazione eventi, pubblicita` e servizi per trasferta";5;Organizzazione e partecipazione a manifestazioni e convegni;26-03-2018;
447;1;562;"2.121,63";"2.121,63";ASSOCIAZIONE FRATERNITA' MISERICORDIA; ;INTERVENTO SOSTEGNO SOGGETTI DIVERSAMENTE ABILI NELLE SCUOLE A.S.2017/2018-GENNAIO 2018;26-03-2018;1775;0;456;1;Spese correnti;3;Acquisto di beni e servizi;2;Acquisto di servizi;15;Contratti di servizio pubblico;999;Altre spese per contratti di servizio pubblico;26-03-2018;
